Cogmind - Beta 16 @@@ ROGUE MODE // 2025.12.19 @ 02:29:10 Player: Cracklepappy Result: Self-destructed Performance ------------- Evolutions (8) 4000 Regions Visited (28) 5600 Robots Destroyed (552) 2760 Value Destroyed (23953) 23953 Prototype IDs (104) 2080 Alien Tech Used (1) 200 Bonus (15827) 15827 TOTAL SCORE: 54420 Bonus ------- High Alert Combat Kills 8038 Follower Combat Kills 1207 Entered DSFs 500 Destroyed Z-Imprinter 1000 Met Warlord at Base 500 MAIN.C Attacked Warlord 500 Warlord Defense Kills 146 Met Warlord at Research 2000 Invited to Help at Command 2000 Scanned by Researcher 500 Friendly Fire -564 Cogmind --------- Core Integrity 339/1450 Matter 81/300 Energy 39/100 System Corruption 41% Temperature Cool (9) Movement Hovering (80) Location -2/Protoforge Parts ------- > --- POWER (3) -------- (None) > --- PROPULSION (6) --- Hovering Gravjet-Armored Exoskeleton > --- UTILITY (9) ------ (None) > --- WEAPON (5) ------- Flak Charged Lightning Construct/G Hyp. Kinetic Nova Construct/C Experimental Jetlance > --- INVENTORY (5) ---- Experimental Heat Sink Coolant Network Crosscalibrator Concept EMP Blanket Launcher Peak State ------------ > --- POWER ------------ Multi-Particle Reactor > --- PROPULSION ------- Hovering Gravjet-Armored Exoskeleton > --- UTILITY ---------- Armored Scrap Engine 2N-1CE's Frost Array Huge Storage Unit Spectral Analyzer SHELL Armor Graphene Brace > --- WEAPON ----------- Null Cannon Helical Railgun Hyp. Kinetic Nova Construct/C Particle Cleaver > --- INVENTORY -------- Advanced Cryofiber Web Experimental Heat Sink Coolant Network Advanced Coolant Injector Advanced Coolant Injector Advanced Coolant Injector Advanced Coolant Injector Zionite Biocell Matter Compressor Surveybot 24 Chip Experimental Targeting Computer Advanced Kinecellerator Graphene Brace Advanced Hacking Suite Ghost Barrier Advanced Component Analysis Suite Long-range Tractor Beam Hacking Drone Bay Subatomic Replicator Vortex Rifle Cooled Nova Cannon Improved Proton Missile Launcher Tactical Quantum Warhead Improved Plasma Cutter [Rating: 226] Favorites ----------- Power Light Angular Momentum Engine Engine Light Angular Momentum Engine Power Core Light Nuclear Core Reactor Constructs Propulsion Spiked Treads Treads Spiked Treads Leg Aluminum Leg Hover Unit Constructs Flight Unit Improved VTOL Module Utility Medium Storage Unit Device Cobbler Unit Storage Medium Storage Unit Processor Spectral Analyzer Hackware Makeshift Hacking Suite Protection SHELL Armor Artifact Phase Redirector Weapon Makeshift Spear Energy Gun Enhanced Quantum Rifle Energy Cannon Beam Cannon Ballistic Gun Enhanced Autogun Ballistic Cannon Constructs Launcher Heavy Shock Bomb Launcher Special Weapon Enhanced Flamer Impact Weapon Shock Maul Slashing Weapon Makeshift Sword Piercing Weapon Makeshift Spear Build | -11 -10 -10 -10 -8 -8 -8 -6 -6 -6 -6 -6 -5 -5 -5 -5 -5 -5 -5 -4 -4 -4 -4 -4 -3 -3 -2 -2 -2 ------- Run | Yrd Mat Min Sub Mat Sto Rec Fac Low Low Zio Dee Pro Fac Was Fac Upp Upp War Pro Fac Was Fac DSF Res Qua Res Tes Frg Slots Evolved 16 | . . . . 4 . . 4 . . . . . 2 . . . . . . 2 . . . 2 . 2 . . Power 2 | . . . . . . . 1 . . . . . . . . . . . . . . . . 1 . . . . Propulsion 4 | . . . . 1 . . 1 . . . . . 1 . . . . . . 1 . . . . . . . . Utility 7 | . . . . 1 . . 2 . . . . . . . . . . . . 1 . . . 1 . 2 . . Weapon 3 | . . . . 2 . . . . . . . . 1 . . . . . . . . . . . . . . . Parts Attached 235 | 10 12 4 10 7 24 18 5 . 3 2 3 . 9 1 10 . . 5 4 15 12 . 8 14 9 27 6 17 Power 17 | 1 3 2 2 2 4 . . . . . . . . . . . . . . 1 . . . 1 . 1 . . Engine 12 | 1 3 2 2 2 2 . . . . . . . . . . . . . . . . . . . . . . . Core 3 | . . . . . 2 . . . . . . . . . . . . . . 1 . . . . . . . . Reactor 2 | . . . . . . . . . . . . . . . . . . . . . . . . 1 . 1 . . Propulsion 28 | 2 . 2 3 4 8 9 . . . . . . . . . . . . . . . . . . . . . . Treads 15 | 2 . 2 . . 5 6 . . . . . . . . . . . . . . . . . . . . . . Leg 2 | . . . . . 2 . . . . . . . . . . . . . . . . . . . . . . . Wheel . | . . . . . . . . . . . . . . . . . . . . . . . . . . . . . Hover 2 | . . . . 2 . . . . . . . . . . . . . . . . . . . . . . . . Flight 9 | . . . 3 2 1 3 . . . . . . . . . . . . . . . . . . . . . . Utility 102 | 5 6 . . . 4 4 5 . 3 2 3 . 7 1 8 . . 3 1 9 9 . 3 10 4 9 3 3 Device 73 | 3 2 . . . 2 2 3 . 3 2 1 . 3 1 5 . . 3 1 9 8 . 2 8 3 7 2 3 Storage 11 | 2 2 . . . 1 1 1 . . . 1 . 2 . 1 . . . . . . . . . . . . . Processor 8 | . 2 . . . . . . . . . . . 1 . 1 . . . . . 1 . . 1 . 2 . . Hackware 4 | . . . . . 1 1 1 . . . . . . . 1 . . . . . . . . . . . . . Protection 5 | . . . . . . . . . . . 1 . 1 . . . . . . . . . 1 1 . . 1 . Artifact 1 | . . . . . . . . . . . . . . . . . . . . . . . . . 1 . . . Weapon 88 | 2 3 . 5 1 8 5 . . . . . . 2 . 2 . . 2 3 5 3 . 5 3 5 17 3 14 Energy Gun 12 | . . . . 1 . . . . . . . . . . . . . 1 1 3 1 . 1 1 1 . . 2 Energy Cannon 14 | . 2 . 2 . . . . . . . . . . . . . . . . . . . 2 . 3 3 2 . Ballistic Gun 25 | 2 . . 2 . 7 1 . . . . . . . . . . . . . . 2 . 1 . . 10 . . Ballistic Cannon 5 | . 1 . . . . . . . . . . . . . . . . . . . . . . . . 2 . 2 Launcher 12 | . . . . . 1 . . . . . . . . . . . . . 1 . . . 1 . . 1 1 7 Special Weapon 8 | . . . . . . 2 . . . . . . 1 . 1 . . . . 2 . . . 1 1 . . . Impact Weapon 1 | . . . . . . . . . . . . . 1 . . . . . . . . . . . . . . . Slashing Weapon 7 | . . . . . . 1 . . . . . . . . 1 . . . 1 . . . . 1 . 1 . 2 Piercing Weapon 4 | . . . 1 . . 1 . . . . . . . . . . . 1 . . . . . . . . . 1 Special Melee Weapon . | . . . . . . . . . . . . . . . . . . . . . . . . . . . . . Unidentified Prototypes 34 | . . . . . 4 1 . . . 1 3 . 2 . 4 . . 2 1 . . . 2 1 1 5 4 3 Parts Lost 57 | . 1 1 5 1 3 . . . . . . . . . . . . . 1 12 . . 2 . 9 . . 22 Power 9 | . 1 1 1 . . . . . . . . . . . . . . . . 1 . . . . 2 . . 3 Propulsion 8 | . . . 2 . 2 . . . . . . . . . . . . . . . . . . . . . . 4 Utility 14 | . . . . . 1 . . . . . . . . . . . . . . 3 . . . . 2 . . 8 Weapon 26 | . . . 2 1 . . . . . . . . . . . . . . 1 8 . . 2 . 5 . . 7 Highest Loss Streak 7 | . 1 1 3 1 2 . . . . . . . . . . . . . 1 4 . . 1 . 6 . . 7 To Critical Strikes 2 | . . . . 1 . . . . . . . . . . . . . . . . . . . . . . . 1 Average Backups 8 | 4 9 14 8 3 6 4 12 13 14 13 14 15 14 15 20 24 25 24 24 24 24 25 24 24 23 23 23 20 Power . | . . 1 . . . . 1 2 1 1 . . . . . . . . . . . . . . . . . . Propulsion . | . 2 3 1 . 1 . 1 . . . . . . . . . . . . . . 1 . . . . . . Utility 3 | 3 2 2 2 2 2 . 5 5 6 5 8 9 9 10 16 20 21 20 19 18 18 20 20 20 19 18 18 15 Weapon 3 | 1 4 7 3 1 3 3 3 5 5 5 4 4 3 4 3 3 3 3 4 4 5 3 3 3 2 3 4 3 Tool/Special . | . . . . . . . . . . . . . . . . . . . . . . . . . . . . . Unused Backups 1474 | . 7 3 7 . 5 1367 6 1 2 6 13 . 15 . 4 3 1 4 . 3 4 . 3 1 1 4 . 14 Power 127 | . . . . . . 119 . . 1 1 2 . 1 . . . . . . 1 . . . . . 2 . . Propulsion 221 | . 1 . 1 . 2 210 1 1 . . 1 . 3 . . . . . . . . . 1 . . . . . Utility 312 | . 5 2 3 . 2 254 4 . 1 3 3 . 7 . 3 2 1 4 . 2 . . 2 1 1 . . 12 Weapon 802 | . 1 1 3 . 1 773 1 . . 2 7 . 4 . 1 1 . . . . 4 . . . . 2 . 1 Tool/Special 12 | . . . . . . 11 . . . . . . . . . . . . . . . . . . . . . 1 Average Slot Usage (%) 71 | . 97 99 97 63 97 76 46 46 46 42 46 46 47 47 46 47 47 46 45 50 57 47 52 53 55 57 49 41 Engine 7 | . 12 13 13 2 3 8 5 3 6 6 6 4 . . . . . . . . . . . . . . . . Treads 16 | . 28 28 12 . 14 20 . . . . . . . . 1 . . 1 . 1 3 5 2 1 4 2 . . Device 10 | . 5 . 7 9 9 9 16 20 20 16 19 20 16 17 14 11 11 11 11 15 15 21 20 14 17 16 13 12 Storage 7 | . 8 14 6 . 7 8 6 6 6 6 6 6 5 5 5 5 5 5 5 5 5 5 5 4 4 4 4 3 Processor 1 | . 14 14 14 9 9 . . . . . . . . . 1 5 5 5 5 4 4 . . 3 4 4 4 3 Energy Cannon 1 | . 9 28 14 . . . . 6 6 5 2 . 3 1 2 . . 1 4 3 1 . 10 6 5 2 6 2 Ballistic Gun 1 | . 11 . 8 9 30 1 . . . . . . . . . . . . . 2 4 . 2 . . 8 3 . Ballistic Cannon 1 | . 6 . . . . 1 5 . . . 3 6 1 3 2 5 5 3 . 1 2 5 1 . 1 1 . 1 Special Weapon 4 | . . . . . . 5 . . . . . . 1 . . . . . . 1 5 5 . 2 1 . . . Slashing Weapon 4 | . . . . . . 6 . . . . . . . . 2 5 5 4 1 2 . . . 1 3 . 2 1 Piercing Weapon 9 | . . . 5 9 4 12 . . . . . . . . . . . . 1 . . . . . . . . . Peak Build Rating 226 | 9 10 9 15 19 37 55 80 84 84 82 86 92 114 118 155 155 156 137 137 150 144 128 155 167 175 196 226 223 Average Rating 53 | 7 7 8 11 16 27 35 66 82 82 73 82 87 102 114 132 155 152 132 127 134 133 127 142 154 154 173 210 184 On Entrance 94 | . 7 8 9 11 19 35 52 80 82 82 76 86 92 114 118 155 155 134 127 120 131 128 128 129 161 109 196 203 Avg Prop Armor Cover (%) 20 | 23 25 . . 15 7 . . . . . . . . . . . . . . . . . . . . . . 30 Naked Turns . | . . . . . . . . . . . . . . . . . . . . . . . . . . . . . Heaviest Build 216 | 16 29 29 29 14 31 54 65 65 67 67 54 54 69 83 146 135 141 168 162 150 143 131 143 147 171 198 216 215 Greatest Support 281 | 40 46 40 40 24 72 89 80 131 103 103 103 140 172 158 132 113 117 163 163 127 193 193 199 199 150 204 245 281 Greatest Overweight (x) 10 | 5 1 . 3 1 2 1 . . . . . . . . 1 1 1 1 1 1 1 . . 1 1 1 1 10 Average Overweight (x) . | 3 . . . . . . . . . . . . . . . 1 1 . . . . . . . . . . . Largest Inventory Capacity 25 | 8 15 15 15 5 10 10 15 15 15 15 15 15 15 15 25 25 25 25 25 25 25 25 25 25 25 25 25 25 Average Capacity 12 | 6 10 15 9 5 9 9 14 15 15 15 15 15 15 15 22 25 25 25 25 25 25 25 25 25 25 25 25 21 Most Carried 25 | 6 15 15 15 5 10 10 15 15 15 15 15 15 15 15 25 25 25 25 25 25 25 25 25 25 25 25 25 25 Average Carried 8 | 4 9 14 9 4 7 5 13 14 14 14 14 15 14 14 20 24 25 24 24 24 24 25 24 24 24 24 24 21 Final Capacity 25 | 5 15 15 5 5 10 10 15 15 15 15 15 15 15 15 25 25 25 25 25 25 25 25 25 25 25 25 25 5 Final Carried 25 | 5 15 15 5 5 10 10 15 15 15 15 15 15 15 15 25 25 25 25 25 25 25 25 25 25 25 25 25 5 Scrap Engine Consumption 1383 | . . . . . . 850 32 8 12 9 19 1 59 18 33 7 5 27 7 60 42 1 24 10 25 54 15 65 Constructs Created 13 | . . . . . . 3 . . . . . . . . . . . . . 5 . . . . . 1 . 4 Constructs Modified 633 | . . . . . . 396 10 7 . 7 5 2 27 5 22 . 6 7 10 15 24 . 11 10 10 23 13 23 Class Distribution -------------------- 48% | Commander-Mutant 21% | Commander-Construct 17% | Construct 5% | Mutant Dominant Class ---------------- Mutant | -10/Materials Mutant | -10/Mines Mutant | -10/Subcaves Mutant | -8/Materials Commander-Gunner | -8/Storage Commander-Mutant | -8/Recycling Construct | -6/Factory Construct | -6/Lower Caves Construct | -6/Lower Caves Construct | -6/Zion Construct | -6/Deep Caves Construct | -5/Proximity Caves Construct | -5/Factory Construct | -5/Waste Construct | -5/Factory Construct | -5/Upper Caves Construct | -5/Upper Caves Commander-Construct | -5/Warlord Construct | -4/Proximity Caves Construct | -4/Factory Construct | -4/Waste Scavenger-Construct | -4/Factory Construct | -4/DSF Construct | -3/Research Construct | -3/Quarantine Construct | -2/Research Construct | -2/Testing Construct | -2/Protoforge Resources | -11 -10 -10 -10 -8 -8 -8 -6 -6 -6 -6 -6 -5 -5 -5 -5 -5 -5 -5 -4 -4 -4 -4 -4 -3 -3 -2 -2 -2 ----------- Run | Yrd Mat Min Sub Mat Sto Rec Fac Low Low Zio Dee Pro Fac Was Fac Upp Upp War Pro Fac Was Fac DSF Res Qua Res Tes Frg Matter Collected 68136 | 520 629 50 120 30 636 54181 669 467 446 206 482 336 462 131 559 239 158 202 582 2027 391 . 567 978 841 854 73 1300 Remotely 560 | . . . . . . . . . . . . . . . 46 . . . . 219 . . . . . . . 295 Salvage Created 77235 | 349 1085 105 216 144 855 48537 864 396 747 . 579 455 2779 1555 2823 643 211 40 520 5103 832 . 631 915 1253 161 609 4828 Parts 2232 | 36 56 9 8 7 55 1015 37 13 20 . 30 35 127 21 102 17 5 7 25 241 13 . 15 45 50 2 28 213 Haulers Intercepted 25 | . 2 . . . 6 . 3 . . . . . 4 . 4 . . . . 1 . . . . 2 2 1 . Recyclers Shooed 544 | . 1 . . . . 533 1 . . . . . . . 1 . . . . 5 . . . 2 . . 1 . Parts Field Recycled 15 | . . . . . . . . . . 15 . . . . . . . . . . . . . . . . . . Retrieved Matter 250 | . . . . . . . . . . 250 . . . . . . . . . . . . . . . . . . Parts Self-Destructed 96 | . . . 4 . . . . 6 13 4 . 35 . . . 15 5 . 14 . . . . . . . . . Prevented 10 | . . . . . . . . . . . . . . . . . . . 10 . . . . . . . . . Parts Restored 1 | . . . . . . . . . . . . . . . . . . . . . . . . . . . . 1 Faulty 1 | . . . . . . . . . . . . . . . . . . . . . . . . . . . . 1 Kills | -11 -10 -10 -10 -8 -8 -8 -6 -6 -6 -6 -6 -5 -5 -5 -5 -5 -5 -5 -4 -4 -4 -4 -4 -3 -3 -2 -2 -2 ------- Run | Yrd Mat Min Sub Mat Sto Rec Fac Low Low Zio Dee Pro Fac Was Fac Upp Upp War Pro Fac Was Fac DSF Res Qua Res Tes Frg Combat Hostiles Destroyed 370 | . 20 8 3 3 8 6 8 4 9 . 11 18 30 6 37 9 1 3 20 52 1 . 11 9 14 . 3 76 Melee 10 | . . . . 3 1 . . . . . . . . . . . . 1 . 1 . . . . . . . 4 Guns 24 | . 6 . . . 7 6 . . . . . . . . . . . . 2 2 . . . . . . . 1 Cannons 252 | . 14 8 3 . . . 8 4 9 . 11 18 26 6 37 9 1 2 4 22 1 . 10 8 9 . 3 39 AOE 52 | . . . . . . . . . . . . . 4 . . . . . 14 10 . . . . 4 . . 20 Classes Destroyed 34 | 3 6 1 3 . 1 . 2 1 3 . 2 . 1 1 2 2 . 1 1 . . . . . 2 . . 2 Worker 38 | 4 3 1 . . 3 . . . . . . . 7 . 3 . . . . 13 . . . 1 3 . . . Builder 48 | . 1 . . . 1 21 . . . . . . 3 . 3 . . . . 10 . . . 1 4 . 1 3 Tunneler 12 | 9 . . . . . . 1 . . . . . 1 . . . . . . 1 . . . . . . . . Hauler 25 | . 2 . . . 6 . 3 . . . . . 4 . 4 . . . . 1 . . . . 2 2 1 . Recycler 799 | 1 3 . . 1 1 777 1 . . . . . 3 . 2 . . . . 6 . . . 2 1 . 1 . Minesweeper 1 | . . . . . . . . . . . . . . . . 1 . . . . . . . . . . . . Mechanic 8 | . 1 . . . 1 . . . . . . . . . 2 . . . . 1 . . . . . . . 3 Operator 1 | . . . . . . . . . . . . . . . . . . . . . . . . . 1 . . . Drone 2 | . . . . . . . . . . . . . . . . . . . 2 . . . . . . . . . Watcher 10 | . 2 . . . 1 . . . . . . . 1 . 1 . . . . 3 . . . . 1 . . 1 Swarmer 65 | . 3 5 . 3 3 . . 3 . . . 18 . . 4 1 . 1 14 5 . . 5 . . . . . Saboteur 5 | . . . . . . . . . . . . . . . . . . 2 . . . . . . . . . 3 Grunt 97 | . 17 . . . 3 . 3 . 3 . . . 9 . 11 3 . . 4 12 . . 4 3 3 . 3 19 Brawler 10 | . . . . . . . . . 2 . . . 1 . 1 2 . . . . . . . . . . . 4 Duelist 9 | . . . . . . . . . 1 . . . . . 2 . . . . . . . . 1 . . . 5 Protector 6 | . . . . . . . . . . . . . 2 . 4 . . . . . . . . . . . . . Researcher 4 | . . . . . . . . . . . . . . . . . . . . . . . . . 2 . 1 1 Sentry 24 | . . . . . 2 . 2 1 2 . . . 6 . 1 2 . . . 1 . . . 1 2 . . 4 Specialist 5 | . . . . . . . . . . . . . . . 3 . . . . 2 . . . . . . . . Hunter 42 | . . . . . . . 2 . . . . . 3 . 3 . . . . 22 . . . . 4 . . 8 Programmer 49 | . . . . . . . 1 . . . . . 9 . 7 . . . . 8 . . 1 4 5 . . 14 Heavy 4 | . . . . . . . . . . . . . . . 1 . . . . 2 . . 1 . . . . . Behemoth 2 | . . . . . . . . . 1 . . . . . . . 1 . . . . . . . . . . . Compactor 7 | . . . . . . . . . . . . . . 6 . . . . . . 1 . . . . . . . Hotshot 8 | . . . . . . . . . . . . . . . . . . . . . . . . . . . . 8 Decapitator 6 | . . . . . . . . . . . . . . . . . . . . . . . . . . . . 6 Immortal 3 | . . . . . . . . . . . . . . . . . . . . . . . . . . . . 3 V-Series 2 | . . . . . . . . . . . . . . . . . . . . . . . . . . . . 2 Artisan 1 | . . . 1 . . . . . . . . . . . . . . . . . . . . . . . . . Cobbler 1 | . . . 1 . . . . . . . . . . . . . . . . . . . . . . . . . Subdweller 9 | . . . 3 . . 6 . . . . . . . . . . . . . . . . . . . . . . Z-Light 6 | . . . . . . . . . . . 6 . . . . . . . . . . . . . . . . . Decomposer 1 | . . . . . . . . . . . . . . . . 1 . . . . . . . . . . . . Packrat 2 | . . . . . . . . . 2 . . . . . . . . . . . . . . . . . . . Samaritan 2 | . . . . . . . . 1 . . . . . . . 1 . . . . . . . . . . . . Assembled 7 | . . 3 . . . . . . . . 4 . . . . . . . . . . . . . . . . . Fireman 1 | . . . . . . . . . . . 1 . . . . . . . . . . . . . . . . . Mutant 1 | . . . . . . . . . . . . . . . . 1 . . . . . . . . . . . . Best Kill Streak 27 | 3 3 3 1 2 7 9 3 3 2 . 4 5 9 2 12 7 1 2 5 27 1 . 5 4 6 1 2 15 Combat Bots Only 13 | . 3 3 1 2 3 4 3 3 2 . 4 5 7 2 9 7 1 2 5 8 1 . 5 4 4 . 2 13 Max Kills in Single Turn 4 | 1 1 2 1 1 2 1 2 1 1 . 1 2 3 2 2 1 1 1 3 4 1 . 1 1 3 1 1 3 Gunslinging . | . . . . . . . . . . . . . . . . . . . . . . . . . . . . . Exploded 3 | . . . . . . . . . . . . . 3 . . . . . 3 3 . . . . 2 . . 3 Melee 1 | . . . . 1 1 . . . . . . . . . . . . 1 . 1 . . . . . . . 1 Uniques/NPCs Destroyed 1 | . . . . . . . . . . . 1 . . . . . . . . . . . . . . . . . Z-Imprinter (-6/Deep Caves) Combat | -11 -10 -10 -10 -8 -8 -8 -6 -6 -6 -6 -6 -5 -5 -5 -5 -5 -5 -5 -4 -4 -4 -4 -4 -3 -3 -2 -2 -2 -------- Run | Yrd Mat Min Sub Mat Sto Rec Fac Low Low Zio Dee Pro Fac Was Fac Upp Upp War Pro Fac Was Fac DSF Res Qua Res Tes Frg Hostile Shots Fired 2453 | . 79 25 33 29 23 7 51 19 18 . 34 45 43 . 115 7 7 10 129 567 . . 119 36 229 7 116 705 Missed 807 | . 26 7 12 16 7 2 19 6 9 . 14 10 17 . 47 . 2 3 34 200 . . 37 12 75 2 48 202 Hits 1646 | . 53 18 21 13 16 5 32 13 9 . 20 35 26 . 68 7 5 7 95 367 . . 82 24 154 5 68 503 Melee 97 | . . . . . . . . . . . 1 . . . . . . 1 . . . . . 3 . 1 . 91 Projectile 1549 | . 53 18 21 13 16 5 32 13 9 . 19 35 26 . 68 7 5 6 95 367 . . 82 21 154 4 68 412 AOE 8 | . . . . . . 1 . . . . . . . . . . . 1 . . . . . . 1 . . 5 Critical Strikes 97 | . . . . 1 . . 1 . . . . 1 . . 1 . . 1 4 15 . . 5 4 10 . 2 52 Actively Blocked 25 | . . . . . . . . . . . . . . . . . . . . 3 . . . . . . 2 20 Part Disruptions 3 | . . . . . . . . . . . . . . . . . . . . . . . . . . . . 3 Damage Taken 37360 | . 629 149 565 150 224 170 431 157 184 . 578 528 525 . 1195 83 69 231 2055 6202 . . 1830 597 3049 171 1369 16219 Core 3164 | . 66 8 82 32 12 19 47 . 61 . 55 18 48 . 98 12 . . 287 641 . . 86 . 481 66 46 999 Absorbed by Shields 226 | . . . . . 4 . . . . . . . . . 56 . . 75 . 58 . . . . . . . 33 Redirected to Core 32 | . . . . . . . . . . . . . . . . . . . . . . . . . . 32 . . Regen/Repaired (Parts) 16641 | . 62 . . . . 7 278 44 49 204 460 180 631 73 980 . 125 23 1336 2772 622 . 1282 357 1228 186 889 4853 Core Remaining (%) 65 | 100 . . 37 . . 88 . . . . . 78 . . . . . . 55 . . . 36 . 63 . . . Volleys Fired 3440 | 61 91 17 16 . 20 2247 34 17 26 . 27 24 51 11 92 24 6 8 46 145 20 . 64 36 84 8 36 229 Largest 4 | 2 2 2 2 . 4 4 1 1 1 . 1 1 1 1 1 1 1 1 1 3 1 . 2 1 1 4 1 2 Hottest 1258 | 40 120 120 120 . 100 215 215 215 215 . 215 115 134 134 184 99 99 221 404 1258 303 . 159 93 148 204 150 177 Shots Fired 3729 | 71 180 34 32 . 73 2289 34 17 26 . 27 24 51 11 91 22 6 8 46 207 22 . 66 36 81 11 36 228 Gun 415 | 71 104 . . . 73 56 . . . . . . . . . . . . 16 75 2 . 3 . . 5 . 10 Cannon 996 | . 76 34 32 . . 2 34 17 26 . 27 24 50 11 91 22 6 8 16 88 20 . 63 35 77 6 36 195 Launcher 84 | . . . . . . . . . . . . . . . . . . . 14 43 . . . . 4 . . 23 Special 2234 | . . . . . . 2231 . . . . . . 1 . . . . . . 1 . . . 1 . . . . Kinetic 755 | 71 134 . . . 73 58 32 . . . 7 24 15 11 37 22 6 1 5 73 11 . 37 3 16 8 5 106 Thermal 2795 | . 46 34 32 . . 2231 2 17 26 . 20 . 35 . 54 . . 7 11 76 11 . 29 30 47 3 31 53 Explosive 24 | . . . . . . . . . . . . . . . . . . . . . . . . . 4 . . 20 Electromagnetic 122 | . . . . . . . . . . . . . . . . . . . 14 43 . . . 2 14 . . 49 Entropic 22 | . . . . . . . . . . . . . . . . . . . 16 6 . . . . . . . . Phasic 8 | . . . . . . . . . . . . . . . . . . . . 8 . . . . . . . . Robot Hit Streak 34 | 12 11 7 22 . 26 28 7 5 5 . 4 7 18 9 9 14 5 4 6 12 12 . 6 4 16 2 8 34 Robot Miss Streak 11 | 4 5 2 1 . 2 4 2 2 6 . 10 6 7 3 11 1 1 2 4 5 2 . 5 2 3 2 3 4 Penetration Max 2 | . . . . . . . . . . . . . . 1 . . . . . 2 . . . . 1 . . 2 Secondary Targets . | . . . . . . . . . . . . . . . . . . . . . . . . . . . . . Shots Hit Robots 3335 | 52 105 20 28 7 57 2360 28 10 20 . 24 19 48 11 65 18 5 4 21 120 17 . 34 30 56 5 12 159 Core Hits 1703 | 24 49 11 7 5 28 1018 15 7 12 . 20 16 62 12 42 8 1 1 26 116 6 . 11 12 27 2 7 158 Critical Kills 11 | . . . . . 1 1 . . . . . . . . 1 1 . . 2 . . . . . 1 . . 4 Critical Parts Destroyed 16 | . 1 . . . . . 1 . . . . . . . 1 . 2 2 . 2 . . . . . . . 7 Critical Strikes 389 | . 2 . . 1 1 334 1 . . . . . . . 2 2 2 2 2 4 1 . 2 . 1 1 . 31 Burn 273 | . . . . . . 270 . . . . . . . . . . . . . 2 1 . . . . . . . Meltdown 1 | . . . . . . . . . . . . . . . . . . . . . . . . . 1 . . . Destroy 32 | . 1 . . . 1 1 1 . . . . . . . 2 2 2 2 2 2 . . . . . . . 16 Blast 4 | . 1 . . . . . . . . . . . . . . . . . . . . . 2 . . 1 . . Corrupt 8 | . . . . . . . . . . . . . . . . . . . . . . . . . . . . 8 Impale 71 | . . . . 1 . 63 . . . . . . . . . . . . . . . . . . . . . 7 Melee Attacks 979 | . . . 12 9 20 882 . . . . . . 4 . . 1 . 3 4 11 . . . 10 10 . 2 11 Impact 4 | . . . . . . . . . . . . . 4 . . . . . . . . . . . . . . . Slashing 166 | . . . . . . 126 . . . . . . . . . 1 . 3 3 11 . . . 10 10 . 2 . Piercing 809 | . . . 12 9 20 756 . . . . . . . . . . . . 1 . . . . . . . . 11 Sneak Attacks 484 | . . . 2 1 5 467 . . . . . . . . . 1 . . . . . . . 4 4 . . . Combat Hostiles . | . . . . . . . . . . . . . . . . . . . . . . . . . . . . . Follow-up Attacks 53 | . . . . . . 53 . . . . . . . . . . . . . . . . . . . . . . Damage Inflicted 136811 | 436 1513 378 528 213 1437 50348 2002 1011 1957 . 1607 1310 7331 2541 12553 4325 1389 492 2130 14890 922 . 2616 2272 4404 204 1101 16901 Guns 4674 | 436 710 . . . 872 547 . . . . . . . . . . . . 599 1198 . . 20 . . 34 . 258 Cannons 66519 | . 797 378 421 . . 159 2002 1011 1957 . 1607 1310 6258 2541 12535 4210 1389 492 890 8409 922 . 2596 1732 3181 170 1101 10451 Explosions 13351 | . . . . . . . . . . . . . 1073 . . . . . 641 5206 . . . . 761 . . 5670 Melee 32260 | . . . 107 213 565 29755 . . . . . . . . . 115 . . . 71 . . . 540 462 . . 432 Ramming 262 | . 6 . . . . 142 . . . . . . . . 18 . . . . 6 . . . . . . . 90 Kinetic 33115 | 436 1050 . . . 872 706 1784 . . . 436 1310 1699 2541 4793 4210 1389 . 121 2270 536 . 1834 . 1009 170 . 5949 Thermal 56035 | . 457 378 421 . . 19745 218 1011 1957 . 1171 . 5414 . 7742 . . 492 769 7962 386 . 782 1602 1879 34 1101 2514 Explosive 5747 | . . . . . . . . . . . . . 218 . . . . . . . . . . . 761 . . 4768 Electromagnetic 8384 | . . . . . . . . . . . . . . . . . . . 641 4172 . . . 130 293 . . 3148 Impact . | . . . . . . . . . . . . . . . . . . . . . . . . . . . . . Slashing 3289 | . . . . . . 2101 . . . . . . . . . 115 . . . 71 . . . 540 462 . . . Piercing 28971 | . . . 107 213 565 27654 . . . . . . . . . . . . . . . . . . . . . 432 Entropic 843 | . . . . . . . . . . . . . . . . . . . 599 244 . . . . . . . . Phasic 165 | . . . . . . . . . . . . . . . . . . . . 165 . . . . . . . . Highest Corruption 41 | . . . . . . . . . . . . . . 10 13 13 13 13 3 7 7 7 8 7 26 . 5 41 Average Corruption 9 | . . . . . . . . . . . . . . 7 11 13 13 13 1 5 7 7 7 4 11 . 5 17 Corruption Purged 3 | . . . . . . . . . . . . . . 2 1 . . . . . . . . . . . . . Corruption Blocked . | . . . . . . . . . . . . . . . . . . . . . . . . . . . . . Effects 462 | . . . . . . . . . . . . . . 7 45 66 49 3 21 28 61 1 17 10 42 . 9 103 Message Errors 99 | . . . . . . . . . . . . . . 2 9 16 10 . 5 6 12 1 3 2 11 . 3 19 Matter Fused 96 | . . . . . . . . . . . . . . 3 6 15 16 . 4 5 20 . 3 2 5 . 2 15 Heat Flow Errors 64 | . . . . . . . . . . . . . . 2 9 9 8 . 4 3 9 . 1 1 3 . 2 13 Energy Discharges 66 | . . . . . . . . . . . . . . . 11 7 9 2 3 1 6 . 3 4 6 . . 14 Parts Rejected 9 | . . . . . . . . . . . . . . . 1 . . . . . . . 1 . 2 . . 5 Parts Fused 5 | . . . . . . . . . . . . . . . . 2 . . 1 . . . . . 1 . . 1 Data Loss (minor) 58 | . . . . . . . . . . . . . . . 5 11 4 . 2 4 7 . 4 1 7 . . 13 Data Loss (major) 25 | . . . . . . . . . . . . . . . 3 4 1 1 2 3 4 . 1 . 2 . 1 3 Misfires 4 | . . . . . . . . . . . . . . . . . . . . 1 2 . . . . . . 1 Alerts 6 | . . . . . . . . . . . . . . . . . 1 . . . 1 . . . 1 . 1 2 Misdirections 10 | . . . . . . . . . . . . . . . . . . . . . . . . . 1 . . 9 Weapon Failures 20 | . . . . . . . . . . . . . . . 1 2 . . . 5 . . 1 . 3 . . 8 Overload Shots 11 | . . . . . . . . . . . . . . . . . . . . 2 2 . . . . . 1 6 Effects 3 | . . . . . . . . . . . . . . . . . . . . 1 . . . . . . 1 1 Energy Bleed 2 | . . . . . . . . . . . . . . . . . . . . 1 . . . . . . 1 . Heat Surge 1 | . . . . . . . . . . . . . . . . . . . . . . . . . . . . 1 Overflow Damage 18656 | . 3 . . . 3 8180 145 89 43 . 41 72 439 . 2776 1072 934 71 103 2472 11 . 215 490 529 . 29 939 Projectiles 9942 | . 3 . . . . 316 145 89 43 . 41 72 296 . 2776 1067 934 71 54 2296 11 . 215 371 411 . 29 702 Explosions 523 | . . . . . . . . . . . . . 143 . . . . . 49 176 . . . . 25 . . 130 Melee 8191 | . . . . . 3 7864 . . . . . . . . . 5 . . . . . . . 119 93 . . 107 Knockbacks 104 | . 2 . . . . 2 10 . . . 4 11 7 . 6 1 . . . 3 1 . 10 . 7 . . 40 Impact 2 | . . . . . . 1 . . . . . . . . . . . . . . . . . . . . . 1 Kinetic 95 | . 2 . . . . 1 8 . . . 4 11 7 . 6 1 . . . 3 1 . 10 . 6 . . 35 Secondary 7 | . . . . . . . 2 . . . . . . . . . . . . . . . . . 1 . . 4 Self-Inflicted Damage 2328 | . 3 . . . . 14 . . . . . . . . . . . . 111 277 . . . . 264 . . 1659 Shots 53 | . . . . . . . . . . . . . . . . . . . 7 11 . . . . 4 . . 31 Rammed 21 | . 1 . . . . 12 . . . . . . . . 1 . . . . 2 . . . . . . . 5 Targets Rammed 25 | . 1 . . . . 16 . . . . . . . . 1 . . . . 2 . . . . . . . 5 Kicked . | . . . . . . . . . . . . . . . . . . . . . . . . . . . . . Crushed 4 | . . . . . . 4 . . . . . . . . . . . . . . . . . . . . . . Highest Temperature 717 | . 385 310 90 . 180 315 316 257 240 . 302 . 93 139 257 216 193 320 678 717 548 . 127 38 116 . 210 159 Average Temperature 80 | . 97 120 49 . 58 76 114 88 93 . 120 . 38 27 76 92 74 129 166 182 143 . 37 12 46 . 62 71 Received Heat Transfer 4092 | . 315 . 147 18 78 15 54 12 72 . 171 . 45 . 90 . 9 10 354 306 . . 248 42 180 9 189 1728 Effects 38 | . 2 . . . . 5 1 . 1 . . . . . . . . . 8 20 1 . . . . . . . Shutdowns 9 | . 1 . . . . . . . . . . . . . . . . . 2 6 . . . . . . . . Energy Bleed 6 | . . . . . . 2 1 . 1 . . . . . . . . . 1 1 . . . . . . . . Interference 9 | . 1 . . . . 3 . . . . . . . . . . . . 3 2 . . . . . . . . Matter Decay 3 | . . . . . . . . . . . . . . . . . . . . 3 . . . . . . . . Short Circuit 2 | . . . . . . . . . . . . . . . . . . . . 2 . . . . . . . . Damage (minor) 3 | . . . . . . . . . . . . . . . . . . . 1 1 1 . . . . . . . Damage (major) 4 | . . . . . . . . . . . . . . . . . . . . 4 . . . . . . . . Damage (core) 2 | . . . . . . . . . . . . . . . . . . . 1 1 . . . . . . . . Siege Activations . | . . . . . . . . . . . . . . . . . . . . . . . . . . . . . Martial Activations . | . . . . . . . . . . . . . . . . . . . . . . . . . . . . . Shielding Activations . | . . . . . . . . . . . . . . . . . . . . . . . . . . . . . Robots Disrupted 61 | . . . . . . 60 . . . . . . . . . . . . . 1 . . . . . . . . Combat Hostiles 1 | . . . . . . . . . . . . . . . . . . . . 1 . . . . . . . . Robots Corrupted 34 | . . . . . . . . . . . . . . . . . . . . 19 . . . 1 2 . . 12 Combat Hostiles 30 | . . . . . . . . . . . . . . . . . . . . 17 . . . 1 . . . 12 Parts Fried 82 | . . . . . . . . . . . . . . . . . . . 6 37 . . . 1 3 . . 35 Impact Corruptions 2 | . . . . . . . . . . . . . . . . . . . . . . . . . 1 . . 1 Robots Melted 108 | . . . . . . 105 . . . . . . . . . . . . . . . . 2 . 1 . . . Combat Hostiles 2 | . . . . . . . . . . . . . . . . . . . . . . . 1 . 1 . . . Parts Melted 194 | . 4 . 2 . . 165 . 1 1 . 4 . 5 . 7 . . . . 1 . . 3 . 1 . . . Heat Transferred 203396 | . 925 777 888 . . 186480 92 700 1350 . 778 . 3883 . 2806 . . 100 235 2885 359 . . . 555 . . 583 Parts Sabotaged 2 | . . . . . . . . . . . . . . . . . . 2 . . . . . . . . . . Parts Stolen . | . . . . . . . . . . . . . . . . . . . . . . . . . . . . . Parts Stripped . | . . . . . . . . . . . . . . . . . . . . . . . . . . . . . Power Chain Reactions 12 | . . . . . . . . . . . . . . . . . . . . 10 . . . . . . . 2 Alert | -11 -10 -10 -10 -8 -8 -8 -6 -6 -6 -6 -6 -5 -5 -5 -5 -5 -5 -5 -4 -4 -4 -4 -4 -3 -3 -2 -2 -2 ------- Run | Yrd Mat Min Sub Mat Sto Rec Fac Low Low Zio Dee Pro Fac Was Fac Upp Upp War Pro Fac Was Fac DSF Res Qua Res Tes Frg Maximum Alert Level 5 | . 1 . . . 2 5 5 . . . . . 4 2 3 . . . . 5 2 . 2 1 2 1 2 5 Low Security (%) 14 | 100 78 100 . 100 58 6 . . . . . . 18 . . . . . . . 35 100 18 53 89 87 40 . Level 1 7 | . 21 . . . 14 5 . . . . . . 13 . 44 . . . . . 33 . 64 46 . 12 32 5 Level 2 6 | . . . . . 26 5 . . . . . . 12 100 13 . . . . . 31 . 16 . 9 . 27 37 Level 3 8 | . . . . . . 7 . . . . . . 40 . 41 . . . . 52 . . . . . . . 19 Level 4 5 | . . . . . . 6 . . . . . . 14 . . . . . . 13 . . . . . . . 12 Level 5 58 | . . . . . . 70 100 . . . . . . . . . . . . 33 . . . . . . . 25 High Security . | . . . . . . . . . . . . . . . . . . . . . . . . . . . . . Max Security . | . . . . . . . . . . . . . . . . . . . . . . . . . . . . . Sterilizations 1 | . . . . . . . . . . . . . . . . . . . . . . . 1 . . . . . Peak Influence 4481 | 10 272 138 . 85 533 4481 2095 . . . . . 1445 520 1065 . . . . 1990 684 58 410 248 479 265 605 1895 Initial 1981 | . . 88 . . 35 184 1981 . . . . . 61 502 324 . . . . 788 684 58 37 230 117 265 16 261 Average 2334 | . 81 22 . 28 185 2782 2021 . . . . . 667 499 570 . . . . 1264 309 56 286 177 138 83 289 1009 Influence Increases 20375 | 70 737 196 42 137 844 4722 479 105 225 23 . 400 2038 62 1271 246 133 491 430 2773 16 5 393 321 868 125 787 2436 Destroy 0b10 Robot/C 7320 | . 400 140 40 60 320 20 160 80 180 20 . 360 580 . 660 200 20 340 360 1040 . . 220 180 320 . 80 1540 Destroy 0b10 Robot/NC 4800 | 70 60 5 . 5 70 4000 25 15 . . . . 105 . 95 10 5 . 10 175 . . 10 20 60 10 15 35 Destroy Leader 1300 | . 98 30 . 10 96 . 56 10 10 . . 40 190 . 128 . 10 . 30 238 . . 30 50 56 4 22 192 Allied During Kill 952 | . . 6 2 . 257 492 . . 5 3 . . 5 . 2 36 8 136 . . . . . . . . . . Successful Hack 269 | . 41 . . 2 53 17 20 . . . . . 92 . 10 . . . . 15 . 5 . . . . 14 . Select Force Hacks 90 | . 60 . . . . 30 . . . . . . . . . . . . . . . . . . . . . . Disable Machine 1230 | . . 15 . . 45 150 45 . . . . . 315 . 60 . . . . 210 . . 15 . 90 . 165 120 Anti-Garrison Action 150 | . . . . . . . . . . . . . . . . . . . . . . . . . . . . 150 Destroy Structure 1749 | . 3 . . . 3 13 28 . . . . . 646 62 196 . . . . 210 16 . 58 26 312 6 56 114 Advance Influence 850 | . . . . . . . 100 . . . . . . . . . . . . 750 . . . . . . . . Partial Spotted 90 | . . . . 15 . . . . . . . . 30 . . . . . . . . . . . 15 . 15 15 Lose Combat Pursuer 1575 | . 75 . . 45 . . 45 . 30 . . . 75 . 120 . 90 15 30 135 . . 60 45 15 105 420 270 Influence Decreases 18522 | 70 509 424 42 52 456 714 2972 1177 627 537 . 302 701 1033 670 994 450 229 630 878 1889 36 36 522 604 568 352 1048 Entered New Map 8370 | . . 140 . . 50 289 2600 737 175 514 . . 37 933 140 395 61 . 262 24 1273 26 16 180 92 208 14 204 Time Decay 8873 | 70 499 264 42 42 346 356 362 440 452 23 . 302 474 100 510 559 389 129 368 534 616 10 . 342 422 360 238 624 Search Patrol Dispatched 300 | . . . . . . . . . . . . . . . . . . . . 200 . . . . . . 100 . Lost Part 500 | . 10 10 . 10 20 . . . . . . . . . . . . . . 120 . . 20 . 90 . . 220 Lost Ally 329 | . . 10 . . 40 69 10 . . . . . 40 . 20 40 . 100 . . . . . . . . . . Purge Threat 150 | . . . . . . . . . . . . . 150 . . . . . . . . . . . . . . . Squads Dispatched 98 | . 6 . . . 3 . 8 . . . . . 20 . 9 . . . . 16 . . 1 3 4 2 8 18 Investigation 13 | . 5 . . . 1 . 1 . . . . . 2 . 1 . . . . . . . . . . . 2 1 Extermination 21 | . . . . . . . 3 . . . . . 4 . 2 . . . . 3 . . . 1 2 . 2 4 Reinforcement 28 | . 1 . . . . . 1 . . . . . 4 . 1 . . . . 8 . . 1 2 2 2 4 2 Assault 27 | . . . . . 2 . 3 . . . . . 4 . 5 . . . . 2 . . . . . . . 11 Garrison 9 | . . . . . . . . . . . . . 6 . . . . . . 3 . . . . . . . . Intercept . | . . . . . . . . . . . . . . . . . . . . . . . . . . . . . Searches Triggered 3 | . . . . . . . . . . . . . . . . . . . . 2 . . . . . . 1 . Construction Impeded 6 | . . . . . . . . . . . . . 2 . 1 . . . . 3 . . . . . . . . Haulers Reinforced 4 | . . . . . . . 1 . . . . . . . . . . . . 1 . . . . . 2 . . Active Scanning Responses . | . . . . . . . . . . . . . . . . . . . . . . . . . . . . . Cargo Convoy Interrupts 1 | . . . . . . . . . . . . . . . 1 . . . . . . . . . . . . . Stealth | -11 -10 -10 -10 -8 -8 -8 -6 -6 -6 -6 -6 -5 -5 -5 -5 -5 -5 -5 -4 -4 -4 -4 -4 -3 -3 -2 -2 -2 --------- Run | Yrd Mat Min Sub Mat Sto Rec Fac Low Low Zio Dee Pro Fac Was Fac Upp Upp War Pro Fac Was Fac DSF Res Qua Res Tes Frg Distress Signals 22 | . 1 . . . 1 . 1 . . . . . 1 . 1 . . . . 2 . . . 1 . 6 4 4 Communications Jammed 80 | . . . . . . . . . . . . . 11 . 25 . . . . . . . . 24 20 . . . Distress Signals 79 | . . . . . . . . . . . . . 10 . 25 . . . . . . . . 24 20 . . . Times Spotted 675 | . 39 8 16 11 15 7 20 4 9 . 15 18 37 6 55 11 5 64 26 70 1 . 15 17 21 22 49 114 Peak Tracking Total 19 | . 4 4 6 8 4 3 6 3 7 . 5 5 7 2 11 9 6 11 6 9 1 . 5 6 4 6 19 17 Tactical Retreats 44 | . 4 1 2 2 . . 1 . 1 . . . 1 . 4 . 1 1 2 6 . . 2 1 1 5 4 5 Traps | -11 -10 -10 -10 -8 -8 -8 -6 -6 -6 -6 -6 -5 -5 -5 -5 -5 -5 -5 -4 -4 -4 -4 -4 -3 -3 -2 -2 -2 ------- Run | Yrd Mat Min Sub Mat Sto Rec Fac Low Low Zio Dee Pro Fac Was Fac Upp Upp War Pro Fac Was Fac DSF Res Qua Res Tes Frg Traps Triggered 20 | . 1 . . . 2 . 1 . . . . . 1 . 3 . . . . 4 . 1 2 1 . . 2 2 Indirectly 2 | . . . . . . . . . . . . . . . . . . . . 2 . . . . . . . . Trap Hack Attempts . | . . . . . . . . . . . . . . . . . . . . . . . . . . . . . Triggered . | . . . . . . . . . . . . . . . . . . . . . . . . . . . . . Disarmed . | . . . . . . . . . . . . . . . . . . . . . . . . . . . . . Reprogrammed . | . . . . . . . . . . . . . . . . . . . . . . . . . . . . . Reused . | . . . . . . . . . . . . . . . . . . . . . . . . . . . . . Traps Extracted . | . . . . . . . . . . . . . . . . . . . . . . . . . . . . . Installed . | . . . . . . . . . . . . . . . . . . . . . . . . . . . . . Triggered . | . . . . . . . . . . . . . . . . . . . . . . . . . . . . . Most Traps Carried 2 | . . . . . . 2 . . . . . . . . . . . . . . . . . . . . . . Machines | -11 -10 -10 -10 -8 -8 -8 -6 -6 -6 -6 -6 -5 -5 -5 -5 -5 -5 -5 -4 -4 -4 -4 -4 -3 -3 -2 -2 -2 ---------- Run | Yrd Mat Min Sub Mat Sto Rec Fac Low Low Zio Dee Pro Fac Was Fac Upp Upp War Pro Fac Was Fac DSF Res Qua Res Tes Frg Machines Disabled 93 | . 1 1 . . 3 10 3 . . . 2 . 21 . 4 1 . 2 . 14 . . 1 . 6 . 11 13 Max in Single Turn 4 | . 1 . . . 1 1 1 . . . 1 . 4 . 1 1 . 1 . 4 . . 1 . 1 . 1 1 Garrison Access 4 | . . . . . . . . . . . . . . . 1 . . . . . . . . . . 2 . 1 Machines Repaired . | . . . . . . . . . . . . . . . . . . . . . . . . . . . . . Machines Dismantled 2 | . . . . . . . . . . . . . . . 1 . . . . . . . . . . . 1 . Machines Sabotaged . | . . . . . . . . . . . . . . . . . . . . . . . . . . . . . Overloaded Fab Kills . | . . . . . . . . . . . . . . . . . . . . . . . . . . . . . Hacking | -11 -10 -10 -10 -8 -8 -8 -6 -6 -6 -6 -6 -5 -5 -5 -5 -5 -5 -5 -4 -4 -4 -4 -4 -3 -3 -2 -2 -2 --------- Run | Yrd Mat Min Sub Mat Sto Rec Fac Low Low Zio Dee Pro Fac Was Fac Upp Upp War Pro Fac Was Fac DSF Res Qua Res Tes Frg Machines Accessed 86 | . 10 1 . 1 16 6 6 . 1 . . . 15 . 9 . 1 2 . 4 . 1 . 4 2 2 3 2 Terminals 44 | . 7 1 . . 14 3 3 . . . . . 7 . 3 . . . . . . 1 . 2 . . 2 1 Fabricators 7 | . . . . . . . 2 . . . . . 1 . 3 . . . . . . . . 1 . . . . Repair Stations 3 | . 1 . . . 1 . . . . . . . . . . . . . . 1 . . . . . . . . Recycling Units 11 | . 2 . . . 1 2 . . . . . . 3 . . . . . . 2 . . . 1 . . . . Scanalyzers 8 | . . . . 1 . . 1 . . . . . 2 . 1 . . . . 1 . . . . 2 . . . Garrison Access 8 | . . . . . . . . . . . . . 2 . 2 . . . . . . . . . . 2 1 1 Total Hacks 239 | . 40 3 . 3 42 20 15 . 1 . . . 54 . 18 . 1 5 . 11 . 1 . 9 3 3 7 3 Successful 123 | . 22 . . 3 25 13 6 . 1 . . . 32 . 7 . 1 5 . 4 . 1 . 1 . . 1 1 Failed 114 | . 17 3 . . 17 7 8 . . . . . 22 . 11 . . . . 7 . . . 8 3 3 6 2 Catastrophic 20 | . . 1 . . 1 2 1 . . . . . 4 . 4 . . . . . . . . 1 . 1 4 1 Database Lockouts 2 | . 1 . . . . . 1 . . . . . . . . . . . . . . . . . . . . . Manual 106 | . 32 3 . . 14 11 8 . . 5 . . 22 . 5 . . . . 5 . . . 1 . . . . Terminals 128 | . 31 3 . . 39 7 9 . . . . . 22 . 6 . . . . . . 1 . 4 . . 5 1 Fabricators 16 | . . . . . . . 4 . . . . . 3 . 7 . . . . . . . . 2 . . . . Repair Stations 6 | . 4 . . . 1 . . . . . . . . . . . . . . 1 . . . . . . . . Recycling Units 35 | . 5 . . . 2 11 . . . . . . 7 . . . . . . 7 . . . 3 . . . . Scanalyzers 25 | . . . . 3 . . 2 . . . . . 13 . 1 . . . . 3 . . . . 3 . . . Garrison Access 20 | . . . . . . . . . . . . . 9 . 4 . . . . . . . . . . 3 2 2 Terminal Hacks 50 | . 7 . . . 17 4 2 . 1 . . . 10 . . . 1 5 . . . 1 . . . . 1 1 Record 6 | . 2 . . . . . . . . . . . . . . . . 4 . . . . . . . . . . Part Schematic 7 | . 1 . . . 3 . 1 . . . . . 2 . . . . . . . . . . . . . . . Robot Schematic 1 | . 1 . . . . . . . . . . . . . . . . . . . . . . . . . . . Robot Analysis 2 | . 2 . . . . . . . . . . . . . . . . . . . . . . . . . . . Prototype ID Bank 6 | . . . . . 3 1 . . . . . . 2 . . . . . . . . . . . . . . . Open Door 8 | . . . . . 5 . . . 1 . . . . . . . 1 1 . . . . . . . . . . Open DSF 1 | . . . . . . . . . . . . . . . . . . . . . . 1 . . . . . . Branch Access Points 2 | . . . . . . . 1 . . . . . 1 . . . . . . . . . . . . . . . Emergency Access Points 1 | . . . . . 1 . . . . . . . . . . . . . . . . . . . . . . . Recycling Unit Index 2 | . . . . . . 1 . . . . . . 1 . . . . . . . . . . . . . . . Alert Level 1 | . . . . . . . . . . . . . 1 . . . . . . . . . . . . . . . Unreport Threat 1 | . . . . . . . . . . . . . 1 . . . . . . . . . . . . . . . Locate Traps 5 | . 1 . . . 3 . . . . . . . . . . . . . . . . . . . . . 1 . Hauler Manifests 2 | . . . . . 1 . . . . . . . 1 . . . . . . . . . . . . . . . Registered Components 1 | . . . . . 1 . . . . . . . . . . . . . . . . . . . . . . . Zone Layout 1 | . . . . . . . . . . . . . 1 . . . . . . . . . . . . . . . Proto ID Catalog 1 | . . . . . . . . . . . . . . . . . . . . . . . . . . . . 1 Release Object 2 | . . . . . . 2 . . . . . . . . . . . . . . . . . . . . . . Fabricator Hacks 6 | . . . . . . . 1 . . . . . 1 . 3 . . . . . . . . 1 . . . . Network Status 3 | . . . . . . . 1 . . . . . . . 1 . . . . . . . . 1 . . . . Load Schematic 2 | . . . . . . . . . . . . . 1 . 1 . . . . . . . . . . . . . Build 1 | . . . . . . . . . . . . . . . 1 . . . . . . . . . . . . . Repair Station Hacks 2 | . 2 . . . . . . . . . . . . . . . . . . . . . . . . . . . Scan Component 1 | . 1 . . . . . . . . . . . . . . . . . . . . . . . . . . . Refit 1 | . 1 . . . . . . . . . . . . . . . . . . . . . . . . . . . Recycling Unit Hacks 7 | . 1 . . . 1 2 . . . . . . 1 . . . . . . 2 . . . . . . . . Retrieve Components 7 | . 1 . . . 1 2 . . . . . . 1 . . . . . . 2 . . . . . . . . Scanalyzer 15 | . . . . 3 . . 1 . . . . . 10 . . . . . . 1 . . . . . . . . Insert Component 9 | . . . . 1 . . 1 . . . . . 6 . . . . . . 1 . . . . . . . . Analyze 5 | . . . . 1 . . . . . . . . 4 . . . . . . . . . . . . . . . Retrieve Study 1 | . . . . 1 . . . . . . . . . . . . . . . . . . . . . . . . Garrison Access Hacks 3 | . . . . . . . . . . . . . 1 . 2 . . . . . . . . . . . . . Unlock Access 2 | . . . . . . . . . . . . . 1 . 1 . . . . . . . . . . . . . Seal Access 1 | . . . . . . . . . . . . . . . 1 . . . . . . . . . . . . . Unauthorized Hacks 40 | . 12 . . . 7 7 2 . . . . . 9 . 2 . . . . 1 . . . . . . . . Terminals 20 | . 8 . . . 6 2 1 . . . . . 3 . . . . . . . . . . . . . . . Track 6 | . 1 . . . 2 1 . . . . . . 2 . . . . . . . . . . . . . . . Assimilate 3 | . 2 . . . . . 1 . . . . . . . . . . . . . . . . . . . . . Botnet 5 | . . . . . 3 1 . . . . . . 1 . . . . . . . . . . . . . . . Operators 1 | . 1 . . . . . . . . . . . . . . . . . . . . . . . . . . . Skim 5 | . 4 . . . 1 . . . . . . . . . . . . . . . . . . . . . . . Fabricators 3 | . . . . . . . 1 . . . . . 1 . 1 . . . . . . . . . . . . . Haulers 2 | . . . . . . . 1 . . . . . . . 1 . . . . . . . . . . . . . Recompile 1 | . . . . . . . . . . . . . 1 . . . . . . . . . . . . . . . Repair Stations 1 | . 1 . . . . . . . . . . . . . . . . . . . . . . . . . . . Patch 1 | . 1 . . . . . . . . . . . . . . . . . . . . . . . . . . . Recycling Units 12 | . 3 . . . 1 5 . . . . . . 2 . . . . . . 1 . . . . . . . . Reject 7 | . 1 . . . 1 2 . . . . . . 2 . . . . . . 1 . . . . . . . . Mask 2 | . . . . . . 2 . . . . . . . . . . . . . . . . . . . . . . Tunnel 3 | . 2 . . . . 1 . . . . . . . . . . . . . . . . . . . . . . Scanalyzers . | . . . . . . . . . . . . . . . . . . . . . . . . . . . . . Garrison Access 4 | . . . . . . . . . . . . . 3 . 1 . . . . . . . . . . . . . Broadcast 1 | . . . . . . . . . . . . . 1 . . . . . . . . . . . . . . . Reprogram 1 | . . . . . . . . . . . . . 1 . . . . . . . . . . . . . . . Watchers 2 | . . . . . . . . . . . . . 1 . 1 . . . . . . . . . . . . . Data Cores Recovered . | . . . . . . . . . . . . . . . . . . . . . . . . . . . . . Used . | . . . . . . . . . . . . . . . . . . . . . . . . . . . . . Hacking Detections 72 | . 8 1 . 1 12 5 5 . . . . . 15 . 9 . . . . 3 . 1 . 4 2 2 3 1 Full Trace Events 7 | . 1 . . . 2 1 1 . . . . . . . 1 . . . . . . . . . . . . 1 Feedback Events . | . . . . . . . . . . . . . . . . . . . . . . . . . . . . . Feedback Blocked . | . . . . . . . . . . . . . . . . . . . . . . . . . . . . . Robot Schematics Acquired 3 | . 1 . . . . . . . . . . . . . . . . . . . . . . . . . 2 . Robots Built . | . . . . . . . . . . . . . . . . . . . . . . . . . . . . . Authchips . | . . . . . . . . . . . . . . . . . . . . . . . . . . . . . Time . | . . . . . . . . . . . . . . . . . . . . . . . . . . . . . Total Robot Build Rating . | . . . . . . . . . . . . . . . . . . . . . . . . . . . . . Part Schematics Acquired 12 | . 1 . . . 3 . 1 . . . . . 4 . . . . . . . . . . . 2 . 1 . Parts Built 2 | . . . . . . . . . . . . . . . 2 . . . . . . . . . . . . . Authchips 1 | . . . . . . . . . . . . . . . 1 . . . . . . . . . . . . . Time 58 | . . . . . . . . . . . . . . . 58 . . . . . . . . . . . . . Total Part Build Rating 14 | . . . . . . . . . . . . . . . 14 . . . . . . . . . . . . . Part Studies Acquired 1 | . . . . 1 . . . . . . . . . . . . . . . . . . . . . . . . Parts Repaired . | . . . . . . . . . . . . . . . . . . . . . . . . . . . . . Time . | . . . . . . . . . . . . . . . . . . . . . . . . . . . . . Parts Recycled . | . . . . . . . . . . . . . . . . . . . . . . . . . . . . . Recycled Matter . | . . . . . . . . . . . . . . . . . . . . . . . . . . . . . Retrieved Matter . | . . . . . . . . . . . . . . . . . . . . . . . . . . . . . Retrieved Components 20 | . 5 . . . 5 7 . . . . . . . . . . . . . 3 . . . . . . . . Parts Scanalyzed 5 | . . . . 1 . . 1 . . . . . 3 . . . . . . . . . . . . . . . Part Schematics Acquired 2 | . . . . . . . . . . . . . 2 . . . . . . . . . . . . . . . Parts Damaged . | . . . . . . . . . . . . . . . . . . . . . . . . . . . . . Bothacking | -11 -10 -10 -10 -8 -8 -8 -6 -6 -6 -6 -6 -5 -5 -5 -5 -5 -5 -5 -4 -4 -4 -4 -4 -3 -3 -2 -2 -2 ------------ Run | Yrd Mat Min Sub Mat Sto Rec Fac Low Low Zio Dee Pro Fac Was Fac Upp Upp War Pro Fac Was Fac DSF Res Qua Res Tes Frg Used RIF Installer . | . . . . . . . . . . . . . . . . . . . . . . . . . . . . . Robots Hacked 1 | . . . . . . . . . . . . . 1 . . . . . . . . . . . . . . . Non-combat 1 | . . . . . . . . . . . . . 1 . . . . . . . . . . . . . . . Combat . | . . . . . . . . . . . . . . . . . . . . . . . . . . . . . Robot Hacks Applied 1 | . . . . . . . . . . . . . 1 . . . . . . . . . . . . . . . find_chute 1 | . . . . . . . . . . . . . 1 . . . . . . . . . . . . . . . Relay Couplers Released 3 | . . . . . . . . . . . . . . . . . . . . . . . . . . 2 . 1 Machine Destruction 3 | . . . . . . . . . . . . . . . . . . . . . . . . . . 2 . 1 Fabnet Peak Effective % . | . . . . . . . . . . . . . . . . . . . . . . . . . . . . . Robots Rewired 48 | . . . . . . 36 . . 2 . . . . . . 5 . 5 . . . . . . . . . . Allies Hacked . | . . . . . . . . . . . . . . . . . . . . . . . . . . . . . Hacks Repelled . | . . . . . . . . . . . . . . . . . . . . . . . . . . . . . Allies | -11 -10 -10 -10 -8 -8 -8 -6 -6 -6 -6 -6 -5 -5 -5 -5 -5 -5 -5 -4 -4 -4 -4 -4 -3 -3 -2 -2 -2 -------- Run | Yrd Mat Min Sub Mat Sto Rec Fac Low Low Zio Dee Pro Fac Was Fac Upp Upp War Pro Fac Was Fac DSF Res Qua Res Tes Frg Total Allies 69 | . 1 2 . . 10 36 1 . 2 4 . . 2 1 . 5 . 5 . . . . . . . . . . Largest Group 39 | . 1 2 1 . 10 39 1 . 2 5 5 . 2 1 1 3 3 5 . . . . . . . . . . Highest-Rated Group 385 | . 10 39 31 . 173 385 10 . 49 300 300 . 82 31 31 108 108 258 . . . . . . . . . . Highest-Rated Ally 96 | . 10 31 31 . 29 29 10 . 29 96 96 . 41 31 31 49 49 68 . . . . . . . . . . Initial Warlord ECA Mod 9 | . . . . . . . . . . . . . . . . . . . . . . . . 9 9 8 8 8 Total Orders 282 | . . . . . . 278 . . . . . . . . . . . 2 . . . . . 1 1 . . . STAY 83 | . . . . . . 83 . . . . . . . . . . . . . . . . . . . . . . ROAM 3 | . . . . . . 3 . . . . . . . . . . . . . . . . . . . . . . FOLLOW 110 | . . . . . . 109 . . . . . . . . . . . 1 . . . . . . . . . . GUARD 1 | . . . . . . . . . . . . . . . . . . 1 . . . . . . . . . . DROP 45 | . . . . . . 45 . . . . . . . . . . . . . . . . . . . . . . PICKUP 37 | . . . . . . 37 . . . . . . . . . . . . . . . . . . . . . . COLLECT 1 | . . . . . . 1 . . . . . . . . . . . . . . . . . . . . . . RETURN 2 | . . . . . . . . . . . . . . . . . . . . . . . . 1 1 . . . Ally Attacks 307 | . . 32 18 . 56 14 . . . 5 40 . 6 2 2 23 2 107 . . . . . . . . . . Total Damage 6166 | . . 250 249 . 729 184 . . . 104 674 . 209 22 20 309 38 3378 . . . . . . . . . . Kills 48 | . . 8 2 . 9 4 . . . 1 6 . 1 . . 2 . 15 . . . . . . . . . . Allies Corrupted . | . . . . . . . . . . . . . . . . . . . . . . . . . . . . . Allies Melted 2 | . . . . . . . . . . . 2 . . . . . . . . . . . . . . . . . Intel | -11 -10 -10 -10 -8 -8 -8 -6 -6 -6 -6 -6 -5 -5 -5 -5 -5 -5 -5 -4 -4 -4 -4 -4 -3 -3 -2 -2 -2 ------- Run | Yrd Mat Min Sub Mat Sto Rec Fac Low Low Zio Dee Pro Fac Was Fac Upp Upp War Pro Fac Was Fac DSF Res Qua Res Tes Frg Active Infowar (turns) 16756 | 1222 330 . . . . . . . . . . . 378 131 1109 1641 1358 1588 2036 1287 43 23 382 765 1032 1100 519 1812 Optics 13679 | . . . . . . . . . . . . . . . 541 1641 1358 1588 2036 1287 . . . 765 1032 1100 519 1812 IFF 520 | . . . . . . . . . . . . . . . . . . . . . . . . . 520 . . . Terrain 1470 | 1215 255 . . . . . . . . . . . . . . . . . . . . . . . . . . . Seismic 1552 | 1222 330 . . . . . . . . . . . . . . . . . . . . . . . . . . . Jamming 2820 | . . . . . . . . . . . . . 378 131 568 . . . . . 43 23 382 368 927 . . . ECM 1 | . . . . . . . . . . . . . . . . . . . . . . . . 1 . . . . Robot Analysis Total 2 | . 2 . . . . . . . . . . . . . . . . . . . . . . . . . . . Derelict Logs Recovered 14 | . . 1 3 . . . . 1 1 2 . 2 . . . . 2 . 2 . . . . . . . . . Drone Launches 2 | . . . . . . . . . . . . . . . . . . . . . . . . 1 1 . . . Drone Recoveries 2 | . . . . . . . . . . . . . . . . . . . . . . . . 1 1 . . . Exploration | -11 -10 -10 -10 -8 -8 -8 -6 -6 -6 -6 -6 -5 -5 -5 -5 -5 -5 -5 -4 -4 -4 -4 -4 -3 -3 -2 -2 -2 ------------- Run | Yrd Mat Min Sub Mat Sto Rec Fac Low Low Zio Dee Pro Fac Was Fac Upp Upp War Pro Fac Was Fac DSF Res Qua Res Tes Frg Turns Passed 126935 | 2742 2455 1313 629 134 1625 91826 833 1095 1134 1800 1267 930 1205 206 1390 1641 1358 1588 2058 1512 2055 23 570 767 1032 1100 519 2128 Spaces Moved 60957 | 774 1624 700 877 181 1221 36411 886 1277 1315 1674 1221 977 1186 121 749 946 862 887 1036 602 937 22 277 516 555 1471 661 991 Core 1294 | 682 564 . . 37 . 2 . . . . . . . . . . . . . . . . . . . . . 9 Treads 38881 | 92 1060 700 124 . 400 33104 . . . . . . 150 . 280 . . 143 84 197 813 22 122 209 555 826 . . Legs 9443 | . . . . . 302 183 1 1002 1315 1674 416 314 170 121 352 . 223 744 662 . . . 61 . . 645 660 598 Wheels 2768 | . . . . . . 1883 885 . . . . . . . . . . . . . . . . . . . . . Hover 4924 | . . . . 26 . . . 275 . . 805 663 365 . 117 946 639 . 290 405 9 . . . . . . 384 Flight 3647 | . . . 753 118 519 1239 . . . . . . 501 . . . . . . . 115 . 94 307 . . 1 . Fastest Speed 25 | 50 50 160 37 34 34 29 50 50 77 77 77 83 58 84 84 163 129 116 152 70 89 89 89 59 59 41 25 80 Average Speed 130 | 220 123 160 55 52 117 146 50 70 77 77 80 83 74 84 119 163 154 133 175 171 116 89 103 115 100 61 37 129 Slowest Speed 550 | 300 160 160 277 100 240 260 50 77 77 77 83 83 102 84 196 163 163 158 185 264 264 89 104 200 227 209 193 550 Overloaded Moves . | . . . . . . . . . . . . . . . . . . . . . . . . . . . . . Propulsion Burnouts . | . . . . . . . . . . . . . . . . . . . . . . . . . . . . . Robots Hopped 11 | . . . 1 1 1 4 . . . . . . 4 . . . . . . . . . . . . . . . Potential Cave-ins 14 | . . . . . . . . . . . . . . . . . . . . . . . . . . . . 14 Cave-ins Triggered 1 | . . . . . . . . . . . . . . . . . . . . . . . . . . . . 1 Exploration Rate (%) 64 | 6 99 100 52 15 93 99 21 98 97 86 71 96 29 91 19 97 94 92 94 17 96 1 96 16 46 48 75 31 Regions Visited 28 Branch Regions 16 Pre-discovered Areas 7 | . 2 . . . . 1 . 1 . 2 . 1 . . . . . . . . . . . . . . . . Known Exits Taken 7 | . . . . 1 . . 1 . . . . . . . 1 . . . 1 . . 1 . 1 1 . . . Unknown Exits Taken 16 | 1 1 1 1 . 1 1 . 1 1 1 1 1 . . . 1 1 1 . . . . . . . 1 1 . Scrap Searched 22 | . . 1 1 . . . . 2 3 3 . 2 . . . 4 2 . 4 . . . . . . . . . Spaces Dug 151 | . . . 1 . 1 6 7 8 . . . 31 53 . 2 3 . 3 3 12 . . 2 5 2 . 6 6 Terrain Destroyed 1267 | . . . 1 . 1 7 29 19 24 . 86 132 351 39 96 4 1 5 12 118 8 . 37 16 217 4 14 46 Melee 26 | . . . 1 . 1 6 . . . . . . 3 . . . . 3 3 7 . . . . 1 . 1 . Projectile 741 | . . . . . . 1 29 19 24 . 86 132 147 39 76 4 1 2 9 26 8 . 37 16 27 4 13 41 AOE 500 | . . . . . . . . . . . . . 201 . 20 . . . . 85 . . . . 189 . . 5 Terrain Rammed . | . . . . . . . . . . . . . . . . . . . . . . . . . . . . . Walls Destroyed . | . . . . . . . . . . . . . . . . . . . . . . . . . . . . . Machines Disabled . | . . . . . . . . . . . . . . . . . . . . . . . . . . . . . Actions | -11 -10 -10 -10 -8 -8 -8 -6 -6 -6 -6 -6 -5 -5 -5 -5 -5 -5 -5 -4 -4 -4 -4 -4 -3 -3 -2 -2 -2 --------- Run | Yrd Mat Min Sub Mat Sto Rec Fac Low Low Zio Dee Pro Fac Was Fac Upp Upp War Pro Fac Was Fac DSF Res Qua Res Tes Frg Total 103041 | 1745 1899 864 983 206 1376 70951 1244 1449 1412 2190 1479 1072 1454 214 1146 1022 886 1283 1223 879 1883 24 496 635 923 1657 882 1564 Wait 34082 | 885 130 129 43 7 13 28794 290 154 60 488 189 70 170 80 260 4 17 308 118 59 890 1 127 20 248 113 145 270 Move 60909 | 773 1623 699 874 178 1218 36402 885 1276 1314 1673 1220 976 1178 120 748 945 861 886 1035 602 936 22 276 515 554 1470 660 990 Hop 11 | . . . 1 1 1 4 . . . . . . 4 . . . . . . . . . . . . . . . Pick Up 743 | 7 20 6 6 1 13 533 15 1 1 4 18 1 18 1 17 4 1 9 3 16 7 . 6 9 4 9 3 10 Fast Attach 101 | 6 2 1 1 3 9 8 1 . . 5 . . . . 2 . . 1 1 4 4 1 4 7 6 20 2 13 Attach 73 | 4 5 . 6 2 2 7 3 . . 3 . . 1 . 2 . . 1 2 11 1 . 2 4 1 3 2 11 Detach 39 | 3 4 . . . 4 6 1 . . 2 . . . . . . . . 2 3 . . 1 1 1 1 3 7 Swap 187 | 3 11 4 7 4 22 9 3 . 3 . 6 . 9 1 12 . . 7 9 14 9 . 7 17 8 9 10 3 Drop 2134 | 3 12 8 17 1 23 1875 8 1 4 15 18 1 19 1 6 4 1 8 3 11 16 . 9 16 7 24 9 14 Fire 3440 | 61 91 17 16 . 20 2247 34 17 26 . 27 24 51 11 92 24 6 8 46 145 20 . 64 36 84 8 36 229 Melee 783 | . . . 12 9 20 686 . . . . . . 4 . . 1 . 3 4 11 . . . 10 10 . 2 11 Ram 8 | . 1 . . . . 2 . . . . . . . . . . . . . . . . . . . . . 5 Kick . | . . . . . . . . . . . . . . . . . . . . . . . . . . . . . Crush 17 | . . . . . . 14 . . . . . . . . 1 . . . . 2 . . . . . . . . Escape Stasis 37 | . . . . . 31 . 4 . . . . . . . . . . . . 1 . . . . . . . 1 Rewire 461 | . . . . . . 364 . . 4 . 1 . . . . 40 . 52 . . . . . . . . . . Trap . | . . . . . . . . . . . . . . . . . . . . . . . . . . . . . Miscellaneous 16 | . . . . . . . . . . . . . . . 6 . . . . . . . . . . . 10 . Route ------- -11/Scrapyard -10/Materials (discovered 5 exits: [*Mat x3] / *Min x2) -10/Mines (discovered 3 exits: [*Mat x2] / [*Sub]) -10/Subcaves -8/Materials (discovered 3 exits: Fac x2 / *Sto) -8/Storage (discovered 2 exits: *Fac / *Rec) -8/Recycling -6/Factory (discovered 3 exits: *Fac / *Low x2) -6/Lower Caves (discovered 2 exits: *Low / *Zio) -6/Lower Caves (discovered 2 exits: *Fac / *Zio) -6/Zion (discovered 2 exits: [*Dee] / [*Pro]) -6/Deep Caves -5/Proximity Caves -5/Factory (discovered 4 exits: *Fac / *Upp x2 / Gar) -5/Waste -5/Factory (discovered 2 exits: *Upp / Gar) -5/Upper Caves -5/Upper Caves (discovered 2 exits: *Fac / *War) -5/Warlord -4/Proximity Caves -4/Factory -4/Waste -4/Factory -4/DSF -3/Research (discovered 3 exits: Res / *Qua x2) -3/Quarantine -2/Research (discovered 4 exits: *Acc x3 / *Tes) -2/Testing (discovered 3 exits: *Acc / [*Sec] / *Frg) -2/Protoforge (discovered 1 exit: *Acc) History --------- Turn | Location | Event 3 | -11/Scrapyard | Discovered new exit (range 16) 2743 | -11/Scrapyard | Entered Materials 2753 | -10/Materials | Build established: Mutant 2892 | -10/Materials | Discovered new exit (range 8) 3006 | -10/Materials | Discovered new exit (range 16) 3052 | -10/Materials | Discovered new exit (range 8) 3060 | -10/Materials | Discovered new exit (range 16) 3655 | -10/Materials | Discovered new exit (range 7) 4173 | -10/Materials | Central database locked down 5198 | -10/Materials | Entered Mines 5198 | -10/Mines | Accompanied by 1 ally 5235 | -10/Mines | Assembled infested the area 5296 | -10/Mines | Learned 2 Materials zone layouts 5459 | -10/Mines | A weapon hastily lodged in a ceiling crevice suddenly fell to the ground 5800 | -10/Mines | Discovered new exit (range 13) 6218 | -10/Mines | Discovered new exit (range 14) 6322 | -10/Mines | Discovered new exit (range 16) 6511 | -10/Mines | Entered Subcaves 6511 | -10/Subcaves | Accompanied by 1 ally 6512 | -10/Subcaves | Approached by a straggling Scientist 6516 | -10/Subcaves | Led the pair of lost Derelicts to an unsafe place 6753 | -10/Subcaves | Ambushed by angry Subdweller bent on revenge 6777 | -10/Subcaves | Core integrity fell below 50% 6805 | -10/Subcaves | Lost 3 parts (1n2w) 6876 | -10/Subcaves | Learned 4 Materials zone layouts 6937 | -10/Subcaves | Shifting Twisted Machinery released Mak. Axe 6942 | -10/Subcaves | Shifting Twisted Machinery released Piercing Trap 7059 | -10/Subcaves | Shifting Twisted Machinery released Sub. Power Source 7071 | -10/Subcaves | Shifting Twisted Machinery released Mak. Thermal Plating 7086 | -10/Subcaves | Learned Materials emergency access door positions 7096 | -10/Subcaves | Discovered new exit (range 8) 7100 | -10/Subcaves | Ambushed by Subdwellers from Twisted Machinery 7122 | -10/Subcaves | Ambushed by angry Subdweller bent on revenge 7140 | -10/Subcaves | Entered Materials 7140 | -8/Materials | Evolved 4 slots: Propulsion x1, Utility x1, Weapon x2 7141 | -8/Materials | Identified exit to Storage 7142 | -8/Materials | Identified exit to Factory 7274 | -8/Materials | Entered Storage 7599 | -8/Storage | Build established: Scavenger-Gunner 7958 | -8/Storage | Assisted by bots powering up and referring to "LRC-V3" 8261 | -8/Storage | Build established: Commander-Gunner 8537 | -8/Storage | Discovered exit to Factory (range 12) 8874 | -8/Storage | First assault squad dispatched 8881 | -8/Storage | Used back door to open Recycling access 8881 | -8/Storage | Discovered new exit (range 5) 8899 | -8/Storage | Entered Recycling 8899 | -8/Recycling | Accompanied by 8 allies 9143 | -8/Recycling | Lost 3 allies 9414 | -8/Recycling | Build established: Scavenger-Gunner 9435 | -8/Recycling | Discovered new exit (range 5) 9781 | -8/Recycling | Entered Scraplab 13086 | -8/Recycling | Build established: Commander-Mutant 73984 | -8/Recycling | Found Prototype Device 73984 | -8/Recycling | Identified Scrap Engine 74636 | -8/Recycling | Build established: Commander-Construct 100725 | -8/Recycling | Entered Factory 100725 | -6/Factory | Evolved 4 slots: Power x1, Propulsion x1, Utility x2 100869 | -6/Factory | Identified exit to Lower Caves 101002 | -6/Factory | Central database locked down 101020 | -6/Factory | Build established: Construct 101075 | -6/Factory | First assault squad dispatched 101192 | -6/Factory | Spotted B-75 Beast 101368 | -6/Factory | Discovered new exit (range 6) 101558 | -6/Factory | Entered Lower Caves 101833 | -6/Lower Caves | A Derelict revealed a hidden shortcut to a safe place 101930 | -6/Lower Caves | Encountered a Warlord checkpoint 102290 | -6/Lower Caves | Discovered new exit (range 9) 102441 | -6/Lower Caves | Attracted the attention of an 0b10 checkpoint 102653 | -6/Lower Caves | Entered another Lower Caves area 102680 | -6/Lower Caves | Discovered new exit (range 7) 103078 | -6/Lower Caves | Discovered new exit (range 8) 103176 | -6/Lower Caves | Attracted the attention of an 0b10 outpost 103448 | -6/Lower Caves | Spotted B-75 Beast 103451 | -6/Lower Caves | Destroyed B-75 Beast 103463 | -6/Lower Caves | Encountered a Warlord checkpoint 103572 | -6/Lower Caves | Learned Factory trap positions 103787 | -6/Lower Caves | Entered Zion 103787 | -6/Zion | Accompanied by 1 ally 103827 | -6/Zion | Discovered new exit (range 15) 103919 | -6/Zion | Learned Factory terminal intel 103946 | -6/Zion | Given A8's code to call for help 104013 | -6/Zion | Acquired unknown access codes intercepted by a Zionite 104152 | -6/Zion | Opened final containment barrier to the Deep Caves 104183 | -6/Zion | Gained Derelict followers 104293 | -6/Zion | Given the Hacking Drone Bay 104295 | -6/Zion | Found Prototype Device 104295 | -6/Zion | Identified Hacking Drone Bay 105499 | -6/Zion | Enhanced Grunt warped into view, answering call for help 105504 | -6/Zion | Enhanced Grunt warped into view, answering call for help 105522 | -6/Zion | Discovered new exit (range 3) 105522 | -6/Zion | Saw the warning signs outside the Deep Caves entrance 105587 | -6/Zion | Entered Deep Caves 105587 | -6/Deep Caves | Accompanied by 5 allies 105673 | -6/Deep Caves | Found Surveybot 24 Chip 105675 | -6/Deep Caves | Found Surveybot 24 Scanner 105831 | -6/Deep Caves | Attacked by Z-Imprinter 105848 | -6/Deep Caves | Destroyed Z-Imprinter 105871 | -6/Deep Caves | Lost 3 allies 106099 | -6/Deep Caves | Found Prototype Protection 106099 | -6/Deep Caves | Identified Zio. Weapon Casing 106362 | -6/Deep Caves | Discovered new exit (range 15) 106854 | -6/Deep Caves | Entered Proximity Caves 107058 | -5/Proximity Caves | Learned Factory stockpile data 107640 | -5/Proximity Caves | Discovered new exit (range 8) 107644 | -5/Proximity Caves | Learned location of Armory (-4) 107784 | -5/Proximity Caves | Entered Factory 107784 | -5/Factory | Evolved 2 slots: Propulsion x1, Weapon x1 107785 | -5/Factory | Loaded intel: 73 trap records 107787 | -5/Factory | Loaded intel: 26 terminal locations 108035 | -5/Factory | Garrison activated, responded to threat 108107 | -5/Factory | Found Hvy. Insulated Plating 108320 | -5/Factory | Discovered new exit (range 15) 108384 | -5/Factory | First assault squad dispatched 108430 | -5/Factory | Identified exit to Factory 108521 | -5/Factory | Discovered new exit (range 11) 108563 | -5/Factory | Identified exit to Garrison 108607 | -5/Factory | Identified exit to Upper Caves 108695 | -5/Factory | Destroyed 7 combat bots 108989 | -5/Factory | Manually triggered Chute Trap 108989 | -5/Factory | Sucked down chute 108989 | -5/Factory | Entered Waste 108990 | -5/Waste | Met a frightened Derelict 109004 | -5/Waste | EMP discharged 109013 | -5/Waste | Spotted C-40 Crusher 109017 | -5/Waste | Destroyed C-40 Crusher 109030 | -5/Waste | Spotted C-40 Crusher 109030 | -5/Waste | Spotted C-40 Crusher 109038 | -5/Waste | Destroyed C-40 Crusher 109038 | -5/Waste | Destroyed C-40 Crusher 109056 | -5/Waste | Spotted C-40 Crusher 109056 | -5/Waste | Spotted C-40 Crusher 109060 | -5/Waste | Destroyed C-40 Crusher 109062 | -5/Waste | Destroyed C-40 Crusher 109085 | -5/Waste | Spotted C-40 Crusher 109088 | -5/Waste | Destroyed C-40 Crusher 109104 | -5/Waste | EMP discharged 109104 | -5/Waste | System corruption reached 10% 109108 | -5/Waste | Discovered new exit (range 10) 109195 | -5/Waste | Entered Factory 109195 | -5/Factory | Accompanied by 1 ally 109285 | -5/Factory | Identified exit to Garrison 109450 | -5/Factory | Fabricated Adv. Cryofiber Web? 109705 | -5/Factory | Discovered exit to Upper Caves (range 14) 109809 | -5/Factory | Cargo convoy interrupted 109852 | -5/Factory | Destroyed 9 combat bots 109975 | -5/Factory | Found Prototype Device 109975 | -5/Factory | Identified Adv. Kinecellerator 110031 | -5/Factory | Found Prototype Device 110032 | -5/Factory | Identified Exp. EM Disruption Field 110044 | -5/Factory | Found Prototype Processor 110044 | -5/Factory | Identified Spectral Analyzer 110054 | -5/Factory | Found Adv. Kinecellerator 110059 | -5/Factory | Found Spectral Analyzer 110095 | -5/Factory | First assault squad dispatched 110585 | -5/Factory | Entered Upper Caves 110745 | -5/Upper Caves | Attacked by a delusional Derelict stockpiling Unaware 111350 | -5/Upper Caves | Attracted the attention of an 0b10 outpost 111390 | -5/Upper Caves | Destroyed 7 combat bots 112031 | -5/Upper Caves | Discovered new exit (range 10) 112226 | -5/Upper Caves | Entered another Upper Caves area 112226 | -5/Upper Caves | Accompanied by 3 allies 112337 | -5/Upper Caves | Discovered exit to Factory (range 12) 112345 | -5/Upper Caves | Learned Factory trap positions 112665 | -5/Upper Caves | Learned Factory machine intel 112924 | -5/Upper Caves | Spotted B-75 Beast 112929 | -5/Upper Caves | Destroyed B-75 Beast 113075 | -5/Upper Caves | Lost 3 allies 113236 | -5/Upper Caves | Discovered new exit (range 15) 113584 | -5/Upper Caves | Entered Warlord 113628 | -5/Warlord | System corruption cleaned by Quarantine Array 113730 | -5/Warlord | Found Prototype Processor 113745 | -5/Warlord | Found Prototype Hackware 114276 | -5/Warlord | Build established: Commander-Construct 114296 | -5/Warlord | Met Warlord 114304 | -5/Warlord | Warlord's base attacked by MAIN.C 114394 | -5/Warlord | Found Prototype Energy Gun 114397 | -5/Warlord | Found Prototype Energy Gun 114514 | -5/Warlord | Warlord forces counterattacked 114519 | -5/Warlord | Lost 3 allies 114582 | -5/Warlord | P-70 Sage assimilated allied MM-3D5(g) 114611 | -5/Warlord | Lost 8 allies 114677 | -5/Warlord | Spotted Executioner 114687 | -5/Warlord | Spotted Striker 114716 | -5/Warlord | Lost 19 allies 114849 | -5/Warlord | Spotted Executioner 114871 | -5/Warlord | Spotted Executioner 114920 | -5/Warlord | Spotted Striker 114979 | -5/Warlord | Warlord base infiltrated, sounded retreat 114990 | -5/Warlord | Spotted Executioner 115081 | -5/Warlord | Discovered new exit (range 17) 115104 | -5/Warlord | Spotted Executioner 115112 | -5/Warlord | Spotted Executioner 115170 | -5/Warlord | Lost 9 allies 115172 | -5/Warlord | Entered Proximity Caves 115174 | -4/Proximity Caves | Spotter reported a threat 115175 | -4/Proximity Caves | Spotter reported a threat 115232 | -4/Proximity Caves | Learned location of 2 exits from Research 115398 | -4/Proximity Caves | Build established: Construct 115585 | -4/Proximity Caves | Spotter reported a threat 115714 | -4/Proximity Caves | Identified Vortex Rifle (x2) 115718 | -4/Proximity Caves | Spotter reported a threat 115771 | -4/Proximity Caves | Spotter reported a threat 116327 | -4/Proximity Caves | Discovered exit to Factory (range 13) 116513 | -4/Proximity Caves | Learned Research security intel 117230 | -4/Proximity Caves | Entered Factory 117230 | -4/Factory | Evolved 2 slots: Propulsion x1, Utility x1 117231 | -4/Factory | Loaded intel: 116 trap records 117232 | -4/Factory | Loaded intel: 313 machine locations 117272 | -4/Factory | Identified Exp. Targeting Computer 117480 | -4/Factory | Search patrols dispatched 117717 | -4/Factory | Garrison activated, responded to threat 117730 | -4/Factory | Search patrols dispatched 118059 | -4/Factory | Destroyed 7 combat bots 118115 | -4/Factory | Destroyed 8 combat bots 118339 | -4/Factory | Lost 4 parts (1u3w) 118480 | -4/Factory | First assault squad dispatched 118481 | -4/Factory | Core integrity fell below 50% 118535 | -4/Factory | Lost 3 parts (2u1w) 118742 | -4/Factory | Sucked down chute 118742 | -4/Factory | Entered Waste 118742 | -4/Waste | The area was eerily silent 118840 | -4/Waste | Build established: Scavenger-Construct 118982 | -4/Waste | A Compactor rumbled back to life 118983 | -4/Waste | Spotted C-40 Crusher 118999 | -4/Waste | Destroyed C-40 Crusher 119098 | -4/Waste | Discovered new exit (range 13) 119216 | -4/Waste | Build established: Construct 120585 | -4/Waste | Found Prototype Launcher 120797 | -4/Waste | Entered Factory 120820 | -4/Factory | Identified exit to DSF 120820 | -4/Factory | Entered DSF 120857 | -4/DSF | Additional patrols routed to DSF 120880 | -4/DSF | Identified Tactical Quantum Warhead 121166 | -4/DSF | Sterilization system engaged 121176 | -4/DSF | Discovered new exit (range 15) 121186 | -4/DSF | Ambient heat levels rising (+10) 121201 | -4/DSF | Ambient heat levels rising (+10) 121216 | -4/DSF | Ambient heat levels rising (+10) 121231 | -4/DSF | Ambient heat levels rising (+10) 121246 | -4/DSF | Ambient heat levels rising (+10) 121261 | -4/DSF | Ambient heat levels rising (+10) 121276 | -4/DSF | Ambient heat levels rising (+10) 121291 | -4/DSF | Ambient heat levels rising (+10) 121306 | -4/DSF | Ambient heat levels rising (+10) 121321 | -4/DSF | Ambient heat levels rising (+10) 121336 | -4/DSF | Ambient heat levels rising (+10) 121351 | -4/DSF | Ambient heat levels rising (+10) 121366 | -4/DSF | Ambient heat levels rising (+10) 121381 | -4/DSF | Ambient heat levels rising (+10) 121390 | -4/DSF | Entered Research 121390 | -3/Research | Evolved 2 slots: Power x1, Utility x1 121391 | -3/Research | Identified exit to Quarantine 121391 | -3/Research | Identified exit to Research 122146 | -3/Research | Discovered exit to Quarantine (range 20) 122155 | -3/Research | Build established: Scavenger-Construct 122157 | -3/Research | Entered Quarantine 122204 | -3/Quarantine | Found Alien Artifact 122524 | -3/Quarantine | Build established: Construct 122643 | -3/Quarantine | System corruption reached 10% 122988 | -3/Quarantine | Scanned by Researcher 123116 | -3/Quarantine | Lost 6 parts (2p1u3w) 123144 | -3/Quarantine | Discovered exit to Research (range 14) 123150 | -3/Quarantine | Spotted Alpha 7 123181 | -3/Quarantine | Found Alien Artifact 123181 | -3/Quarantine | Identified Phase Redirector 123189 | -3/Quarantine | Entered Research 123189 | -2/Research | Warlord forces began assault on 0b10 123189 | -2/Research | Evolved 2 slots: Utility x2 123214 | -2/Research | Distinguished unit "Cat Herders" dispatched to help 123253 | -2/Research | Discovered new exit (range 9) 123259 | -2/Research | Identified exit to Access 123299 | -2/Research | Research machine network offline 123442 | -2/Research | Lost 3 allies 123468 | -2/Research | Spotted Striker 123469 | -2/Research | Spotted Striker 123494 | -2/Research | Spotted Striker 123504 | -2/Research | Spotted Striker 123508 | -2/Research | Spotted Executioner 123550 | -2/Research | Lost 9 allies 123556 | -2/Research | Borebot progress halted 123607 | -2/Research | Discovered new exit (range 16) 123626 | -2/Research | Found Prototype Launcher 123626 | -2/Research | Identified Gui. Micro-nuke Launcher 123769 | -2/Research | Borebot progress halted 124041 | -2/Research | Spotted Executioner 124080 | -2/Research | Discovered exit to Access (range 9) 124096 | -2/Research | Spotted Striker 124096 | -2/Research | Spotted Executioner 124098 | -2/Research | Spotted Executioner 124153 | -2/Research | Lost 4 allies 124157 | -2/Research | Discovered exit to Access (range 23) 124165 | -2/Research | Met DD-05H 124166 | -2/Research | Met up with Warlord 124180 | -2/Research | Spotted Executioner 124192 | -2/Research | Spotted Striker 124192 | -2/Research | Warlord invited to help at Command 124192 | -2/Research | Given Cave Seal Controls access code 124200 | -2/Research | Spotted Striker 124202 | -2/Research | Spotted Striker 124229 | -2/Research | Found Prototype Processor 124229 | -2/Research | Identified Exp. Core Analyzer 124289 | -2/Research | Entered Testing 124329 | -2/Testing | Found Prototype Device 124329 | -2/Testing | Identified 2N-1CE's Frost Array 124382 | -2/Testing | Found Prototype Protection 124382 | -2/Testing | Identified SHELL Armor 124500 | -2/Testing | Found Prototype Energy Cannon 124500 | -2/Testing | Identified Cld. Nova Cannon 124508 | -2/Testing | Discovered exit to Access (range 7) 124509 | -2/Testing | Lost 5 allies 124547 | -2/Testing | Found Prototype Energy Cannon 124547 | -2/Testing | Identified Null Cannon 124664 | -2/Testing | Spotted Fortress 124681 | -2/Testing | Discovered new exit (range 5) 124681 | -2/Testing | Discovered new exit (range 6) 124789 | -2/Testing | Search patrols dispatched 124808 | -2/Testing | Entered Protoforge 124824 | -2/Protoforge | Superfortress began startup sequence 124866 | -2/Protoforge | Spotted Hotshot 124869 | -2/Protoforge | Spotted Hotshot 124872 | -2/Protoforge | Spotted Hotshot 124874 | -2/Protoforge | Destroyed Hotshot 124875 | -2/Protoforge | Spotted Hotshot 124880 | -2/Protoforge | Destroyed Hotshot 124882 | -2/Protoforge | Destroyed Hotshot 124884 | -2/Protoforge | Destroyed Hotshot 124890 | -2/Protoforge | Spotted Hotshot 124890 | -2/Protoforge | Spotted Hotshot 124891 | -2/Protoforge | Spotted Hotshot 124892 | -2/Protoforge | Spotted Hotshot 124911 | -2/Protoforge | Destroyed Hotshot 124912 | -2/Protoforge | Destroyed Hotshot 124915 | -2/Protoforge | Destroyed Hotshot 124982 | -2/Protoforge | Destroyed Hotshot 125102 | -2/Protoforge | Spotted B-90 Cyclops 125308 | -2/Protoforge | First assault squad dispatched 125500 | -2/Protoforge | System corruption reached 10% 125544 | -2/Protoforge | Discovered exit to Access (range 12) 125586 | -2/Protoforge | Additional patrols dispatched to research labs 125614 | -2/Protoforge | Crushed by falling debris 125627 | -2/Protoforge | Found Prototype Device 125633 | -2/Protoforge | Found Cep. Concussive Dispersal Blaster 125638 | -2/Protoforge | Spotted Immortal 125662 | -2/Protoforge | Spotted Hotshot 125665 | -2/Protoforge | Spotted Hotshot 125667 | -2/Protoforge | Spotted Hotshot 125756 | -2/Protoforge | Spotted V095-u 125756 | -2/Protoforge | Spotted V621-p 125756 | -2/Protoforge | Spotted V815-u 125792 | -2/Protoforge | Spotted Decapitator 125792 | -2/Protoforge | Spotted Decapitator 125792 | -2/Protoforge | Spotted Decapitator 125808 | -2/Protoforge | Found Faulty Cep. Concussive Dispersal Blaster 125811 | -2/Protoforge | Found Cep. Concussive Dispersal Blaster 125832 | -2/Protoforge | Destroyed Decapitator 125832 | -2/Protoforge | Destroyed Decapitator 125843 | -2/Protoforge | Destroyed Decapitator 125852 | -2/Protoforge | Found Exp. Terror Saw 125865 | -2/Protoforge | Found Exp. Terror Saw 126017 | -2/Protoforge | Destroyed Immortal 126236 | -2/Protoforge | Destroyed 13 combat bots 126242 | -2/Protoforge | Spotted Hotshot 126297 | -2/Protoforge | Lost 4 parts (1p1u2w) 126317 | -2/Protoforge | Spotted V835-x 126317 | -2/Protoforge | Spotted V467-b 126332 | -2/Protoforge | Found Cep. Rapid Grenade Launcher 126335 | -2/Protoforge | Spotted V021-o 126336 | -2/Protoforge | Found Cep. Smart ZDS 126339 | -2/Protoforge | Found Faulty Cep. EMP Blanket Launcher 126347 | -2/Protoforge | Found Cep. Rapid Grenade Launcher 126350 | -2/Protoforge | Found Faulty Cep. EMP Blanket Launcher 126398 | -2/Protoforge | Spotted Decapitator 126398 | -2/Protoforge | Spotted Decapitator 126398 | -2/Protoforge | Spotted Decapitator 126402 | -2/Protoforge | Destroyed Decapitator 126402 | -2/Protoforge | Destroyed Decapitator 126402 | -2/Protoforge | Destroyed Decapitator 126420 | -2/Protoforge | Identified Crosscalibrator 126527 | -2/Protoforge | Spotted V547-k 126527 | -2/Protoforge | Spotted V160-v 126538 | -2/Protoforge | Spotted Immortal 126538 | -2/Protoforge | Spotted Immortal 126564 | -2/Protoforge | Found Prototype Ballistic Cannon 126564 | -2/Protoforge | Identified Cep. Helical Railcannon 126582 | -2/Protoforge | Destroyed V160-v 126601 | -2/Protoforge | System corruption reached 30% 126611 | -2/Protoforge | Destroyed Immortal 126623 | -2/Protoforge | Destroyed Immortal 126651 | -2/Protoforge | Lost 6 parts (1p1n3u1w) 126670 | -2/Protoforge | Spotted V366-a 126674 | -2/Protoforge | Core integrity fell below 50% 126679 | -2/Protoforge | Destroyed V366-a 126684 | -2/Protoforge | Found Cep. Heavy Railcannon 126783 | -2/Protoforge | Found Exp. Jetlance 126936 | -2/Protoforge | Self-destructed Last Messages --------------- 26926_ Lightning Beam penetrates L-61 Swordsman. 26927_ N-04 Retriever collects Corrupted Unknown Treads. 26927_ N-04 Retriever collects Power Sword. 26927_ N-04 Retriever collects Imp. Core Shielding. 26928_ Scrap Engine destroyed. 26929_ Lightning Beam penetrates L-61 Swordsman. 26929_ Lightning Beam penetrates Reinforced Barrier. 26929_ Lightning Beam penetrates L-61 Swordsman. 26929_ Lightning Beam penetrates Reinforced Barrier. 26929_ Lightning Beam penetrates L-61 Swordsman. 26929_ Lightning Beam penetrates Reinforced Barrier. 26929_ Lightning Beam penetrates L-61 Swordsman. 26929_ Lightning Beam penetrates Reinforced Barrier. 26929_ Lightning Beam penetrates L-61 Swordsman. 26929_ Lightning Beam penetrates Reinforced Barrier. 26929_ Lightning Beam penetrates L-61 Swordsman. 26934_ Hpw. KE Rail Construct/C destroyed. 26937_ Hovering Gravjet-Armored Exoskeleton destroyed. 26937_ Hovering Gravjet-Armored Exoskeleton core remains intact and functional. Map ----- +----------------------------------------------------+ | ?????????????????????????????????????????????????? | | ?????????????????????????????????????????????????? | | ?????????????????????????????????????????????????? | | ?????????????????????????????????????????????????? | | ?????????????????????????????????????????????????? | | ?????????????????????????????????????????????????? | | ?????????????????????????????????????????????????? | | ?????????????????????????????????????????????????? | | ?????????????????????????????????????????????????? | | ?????????????????????????????????????????????????? | | ?????????????????????????????????????????????????? | | ?????????????????????????????????????????????????? | | ?????????????????????????????????????????????????? | | ?????????????????????????????????????????????????? | | ?????????????????????????????????????????????????? | | ?######??????????????????????????????????????????? | | ? #??????????????????????????????????????????? | | ?? ??????????????#########???????????????????? | | ?? ??????????????# / // #???????????????????? | | ??# #??????????????#[/ //#???????????????????? | | ??# #??????????????# / !#?####??????????????? | | ??# #??????????????######% ### ###????????????? | | ??# #?????????????????# !!=%! "#????????????? | | ??# #?????????????????# %! "#????????????? | | ??# ###################% [= ""#????????????? | | ??# %% @ """"#????????????? | | ??# g l! """"#????????????? | | ??# #########++######## ""#????????????? | | ??# #?????#" ! ! # #????????????? | | ??# #?????#" ##????????????? | | ??# #?????#" " " | #????????????? | | ??# #?????#"""""""# [ #????????????? | | ??# #?????######### #####" #????????????? | | ??# #?????????????#####???#########????????????? | | ??# #??????????????????????????????????????????? | | ??# #??????????????????????????????????????????? | | ??# #??????????????????????????????????????????? | | ??# #??????????????????????????????????????????? | | ??# #??????????????????????????????????????????? | | ??# #??????????????????????????????????????????? | | ??# #??????????????????????????????????????????? | | ??# #??????????????????????????????????????????? | | ??# #????????????????###"""##"""###????????????? | | ??# #????????????????# "#????????????? | | ??# #????????????????# ""#????????????? | | ??# ################## """"#????????????? | | ??# ! """"#????????????? | | ??# % % % % ""#????????????? | | ??# ########### #"" "#????????????? | | ??# #?????????#" #?" "#????????????? | +----------------------------------------------------+ Best States ------------- Heat Dissipation 149 Coolant Potential 220 Energy Generation 91 Energy Capacity 1726 Matter Stores 300 Matter Capacity 300 Sight Range 24 Terrain Scan Range 16 Terrain Scan Density 10 Jamming Range 16 Additional Mass Support 12 Base Temperature (-) 200 Armor Coverage 900 Resistance: TH 25 Resistance: EM 25 Weapon Shielding 100 Point Defense Rating 160 Evasion (%) 70 Targeting Accuracy 10 Core Analysis 8 Armor Integrity Analysis 40 Recoil Reduction 6 Particle Charging 25 Offensive Hacking 11 Defensive Hacking 11 Authchip Count 1 Item Schematics ----------------- Flight Unit | -10/Materials | Hacked Melee Analysis Suite | -8/Storage | Hacked Imp. System Restoration Module | -8/Storage | Hacked Cooling System | -8/Storage | Hacked Imp. Cooling System | -6/Factory | Hacked Exp. Heat Sink | -5/Factory | Scanalyzed Adv. Cryofiber Web | -5/Factory | Hacked Mak. System Restoration Module | -5/Factory | Scanalyzed Nuclear Pulse Array | -5/Factory | Hacked Mni. Fusion Reactor | -3/Quarantine | Archive Prc. Phase Gun | -3/Quarantine | Archive Exp. Focal Shield | -2/Testing | Archive Robot Schematics ------------------ M-13 Machinist | -10/Materials | Hacked A-27 Freighter | -2/Testing | Archive R-06 Scavenger | -2/Testing | Archive Fabricated ------------ Adv. Cryofiber Web | x2 | -5/Factory | Authchip Repaired ---------- Nothing Studied --------- Flight Unit | -8/Materials | Hacked Alien Tech Used ----------------- Phase Redirector Achievements -------------- Definitely A Prototype Doshington Hot Goods Stay Cool Under Fire Welcome To The Revolution Window Shopping Challenges ------------ None Game ------ Seed SmallCorruptionAccelerator Manual? 0 Play Time 13:42:51 Cumulative 1460.7 hours Start 2025.12.16 @ 22:34:13 End 2025.12.19 @ 02:29:10 Sessions 5 Manual Loads 0 Difficulty Rogue Special Mode None Game No. 659 Rogue 659 Adventurer 0 Explorer 0 Win Type - Total 28 Types 13/5/3/0/1/1/2/2/0/1 Lore% 93 Gallery% 90 Achievement% 72 Wizard Run 0 Options --------- Layout 0 ASCII 0 Keyboard 0 Movement Numpad Keybinds 0 Fullscreen 2 Font 24/Smallcaps Map View 76x50 Zoom Use 0% Tactical HUD 1 Map Filters NONE Filters SHIFT_HUE(315) Steam 1 RUN: 3264d6d1-7806-45ad-b129-cd390fcec767